Cogmind - Beta 17.1 @@@ ROGUE MODE // 2026.08.31 @ 23:31:54 Player: MolePlayingNice Result: Escaped! Performance ------------- Evolutions (9) 4500 Regions Visited (25) 5000 Robots Destroyed (412) 2060 Value Destroyed (23088) 23088 Prototype IDs (77) 1540 Alien Tech Used (1) 200 Bonus (49919) 49919 TOTAL SCORE: 86307 Bonus ------- Triggered High Security 500 High Alert Combat Kills 11453 Follower Combat Kills 6933 Prayed to X0-1V1 5000 Major X0-1V1 Interference 15050 Network Hubs Disabled 200 Met Data Miner 300 Met Imprinter 300 Was Imprinted 300 Built Enhanced Grunts 300 Scanned by Researcher 500 Destroyed MAIN.C Guards 500 Met MAIN.C 5000 Destroyed MAIN.C Shell 5000 Win 3000 Friendly Fire -4417 Cogmind --------- Core Integrity 607/1450 Matter 469/700 Energy 88/1700 System Corruption 7% Temperature Cool (0) Movement Core (50) Location To Epsilon Eridani Parts ------- > --- POWER (3) -------- (None) > --- PROPULSION (6) --- Improved Heavy Siege Treads Heavy Shield Leg > --- UTILITY (12) ----- Spectral Analyzer Advanced Targeting Computer Experimental Weapon Cycler > --- WEAPON (5) ------- (None) > --- INVENTORY (5) ---- Gamma Bomb Array Chaos Jack (35) Peak State ------------ > --- POWER ------------ Singularity Reactor > --- PROPULSION ------- Experimental Biometal Heavy Treads Enhanced Armored Heavy Treads Experimental Biometal Medium Treads High-density Centrium Leg > --- UTILITY ---------- Coolant Network High-capacity Storage Unit Spectral Analyzer Advanced Targeting Computer Experimental Core Analyzer Advanced Particle Accelerator Experimental Weapon Cycler Centrium Heavy Armor Plating Experimental Force Field Experimental System Purifier > --- WEAPON ----------- Precision Phase Gun Precision Phase Gun Enhanced Quantum Rifle Heavy Quantum Rifle Heavy Quantum Rifle > --- INVENTORY -------- Graviton Reactor Zero-point Reactor Zero-point Reactor Heavy Shield Leg Experimental Cooling System Experimental Cooling System Compact Matter Pod Experimental EM Shield Advanced Force Field Quantum Rifle Quantum Rifle Precision Phase Gun Improved Matter Neutralizer Enhanced Nova Cannon Enhanced Nova Cannon Enhanced Nova Cannon Helical Railgun Multirail Gamma Bomb Array [Rating: 259] Favorites ----------- Power Vortex Chain Reactor Engine Light Deuterium Engine Power Core Fission Core Reactor Vortex Chain Reactor Propulsion Carbon-fiber Leg Treads Enhanced Armored Heavy Treads Leg Carbon-fiber Leg Wheel Armored Huge Wheel Hover Unit Antigrav System Utility X0-1V1's Piety Tracker Device X0-1V1's Piety Tracker Storage High-capacity Storage Unit Processor Improved Signal Interpreter Hackware Hacking Suite Protection Improved Powered Armor Weapon Enhanced Quantum Rifle Energy Gun Enhanced Quantum Rifle Energy Cannon Enhanced Nova Cannon Ballistic Gun Coil Gun Ballistic Cannon Improved Light Cannon Launcher Gamma Bomb Array Impact Weapon Hammer Slashing Weapon Makeshift Axe Piercing Weapon Heavy Pick Special Melee Weapon Chaos Jack Build | -11 -10 -9 -8 -7 -7 -7 -6 -6 -6 -6 -6 -5 -5 -5 -5 -5 -5 -4 -4 -4 -4 -3 -2 -1 -1 ------- Run | Yrd Mat Mat Mat Fac Low Zio Pro Fac Low Low Dat Pro Fac Ext Cet Arc Hub Fac Was Fac Arm Res Res Acc Com Slots Evolved 18 | . . 2 2 2 . . . 2 . . . . 2 . . . . 2 . . . 2 2 2 . Power 1 | . . . . . . . . . . . . . . . . . . 1 . . . . . . . Propulsion 3 | . . . 2 . . . . . . . . . . . . . . . . . . . 1 . . Utility 11 | . . 2 . 2 . . . 2 . . . . 1 . . . . 1 . . . . 1 2 . Weapon 3 | . . . . . . . . . . . . . 1 . . . . . . . . 2 . . . Parts Attached 339 | . 12 16 13 7 3 6 7 8 5 2 . 5 6 32 8 4 13 5 6 21 32 17 21 20 70 Power 42 | . 3 4 1 . . 1 1 1 . . . 1 . 3 1 . 1 1 2 4 5 2 4 4 3 Engine 10 | . 2 4 1 . . 1 1 . . . . 1 . . . . . . . . . . . . . Core 7 | . 1 . . . . . . 1 . . . . . 3 . . 1 . . . . 1 . . . Reactor 25 | . . . . . . . . . . . . . . . 1 . . 1 2 4 5 1 4 4 3 Propulsion 78 | . 3 4 5 . . . 5 1 1 1 . 2 2 16 . 1 5 2 . 5 7 . 4 4 10 Treads 7 | . . . . . . . . . . . . . . 1 . . . . . . 2 . . . 4 Leg 62 | . 3 4 5 . . . 5 1 1 1 . . 1 10 . . 5 2 . 5 5 . 4 4 6 Wheel 1 | . . . . . . . . . . . . . 1 . . . . . . . . . . . . Hover 8 | . . . . . . . . . . . . 2 . 5 . 1 . . . . . . . . . Flight . | . . . . . . . . . . . . . . . . . . . . . . . . . . Utility 136 | . 3 3 4 4 1 3 1 4 2 1 . 2 3 8 6 2 6 1 2 7 11 3 7 9 43 Device 72 | . 2 1 2 2 . . . 1 1 . . 1 2 5 1 2 2 . . 2 9 2 4 7 26 Storage 6 | . . 1 1 . . . . . . . . . . . . . 1 . . 1 1 . . . 1 Processor 19 | . 1 1 1 1 . 1 1 1 . . . . 1 . . . . . . 2 . . 1 2 6 Hackware 6 | . . . . . . . . . . . . . . 2 . . . . . . . . . . 4 Protection 33 | . . . . 1 1 2 . 2 1 1 . 1 . 1 5 . 3 1 2 2 1 1 2 . 6 Artifact . | . . . . . . . . . . . . . . . . . . . . . . . . . . Weapon 83 | . 3 5 3 3 2 2 . 2 2 . . . 1 5 1 1 1 1 2 5 9 12 6 3 14 Energy Gun 36 | . 1 1 . . . . . . . . . . . 2 . 1 1 . 1 2 1 10 5 1 10 Energy Cannon 10 | . . . 1 . 1 . . . . . . . . . . . . . . 1 4 2 . . 1 Ballistic Gun 8 | . . 1 1 . . . . . . . . . 1 . . . . 1 1 1 . . . . 2 Ballistic Cannon 10 | . 2 2 . . . . . . . . . . . . 1 . . . . 1 4 . . . . Launcher 6 | . . 1 1 . . 1 . . 1 . . . . . . . . . . . . . 1 . 1 Special Weapon . | . . . . . . . . . . . . . . . . . . . . . . . . . . Impact Weapon 2 | . . . . 2 . . . . . . . . . . . . . . . . . . . . . Slashing Weapon 9 | . . . . 1 1 1 . 2 . . . . . 2 . . . . . . . . . 2 . Piercing Weapon 2 | . . . . . . . . . 1 . . . . 1 . . . . . . . . . . . Special Melee Weapon . | . . . . . . . . . . . . . . . . . . . . . . . . . . Unidentified Prototypes 60 | . 1 2 1 . . 1 . . . 1 . . . 2 3 2 4 . . 5 . 2 5 6 25 Corrupted Parts 1 | . . . . . . . . . . . . . . . . . 1 . . . . . . . . System Corruption 6 | . . . . . . . . . . . . . . . . . 6 . . . . . . . . Parts Lost 79 | . 2 1 2 . . . . . . 2 . 4 13 1 . . 3 . . 1 17 . 3 3 27 Power 8 | . 1 . . . . . . . . . . 1 1 . . . . . . . 1 . . 1 3 Propulsion 17 | . . . 1 . . . . . . 1 . 2 4 1 . . . . . . 4 . . 1 3 Utility 39 | . . 1 1 . . . . . . 1 . 1 5 . . . 1 . . 1 10 . 2 1 15 Weapon 15 | . 1 . . . . . . . . . . . 3 . . . 2 . . . 2 . 1 . 6 Highest Loss Streak 13 | . 2 1 1 . . . . . . 2 . 3 13 1 . . 2 . . 1 8 . 1 2 12 To Critical Strikes 4 | . . . . . . . . . . . . . . . . . . . . . . . . . 4 Average Backups 13 | . 7 9 10 13 13 14 14 14 14 13 14 13 12 4 4 5 6 7 9 16 17 18 18 17 17 Power . | . . . 1 2 2 . . 1 1 1 1 . . . . . . . . . 1 1 1 . 1 Propulsion 2 | . 2 2 1 2 2 2 2 2 1 1 1 1 . . . . . 3 4 4 3 4 1 2 2 Utility 4 | . 1 1 2 1 2 5 5 4 5 4 4 4 5 2 2 3 5 4 4 7 5 5 9 6 5 Weapon 6 | . 3 4 5 7 7 6 6 6 6 7 8 8 6 2 2 2 . . 1 3 6 7 7 7 8 Tool/Special . | . . . . . . . . . . . . . . . . . . . . . . . . . . Unused Backups 93 | . 7 6 3 . . 3 8 1 5 2 . 1 6 3 1 1 . 1 . 5 6 5 3 2 24 Power 8 | . . . 1 . . 1 . . . . . . . 1 . . . . . 1 1 . . . 3 Propulsion 18 | . 2 2 . . . . 3 . . . . . . 1 . . . 1 . 3 . 1 1 1 3 Utility 24 | . 1 2 1 . . . 2 . . . . . 3 . . 1 . . . 1 1 1 . 1 10 Weapon 41 | . 4 1 1 . . 2 3 1 5 2 . 1 3 1 1 . . . . . 4 3 2 . 7 Tool/Special 2 | . . 1 . . . . . . . . . . . . . . . . . . . . . . 1 Average Slot Usage (%) 93 | . 99 98 99 98 100 98 99 99 99 99 100 99 92 88 99 99 96 87 95 96 89 93 94 92 84 Engine 2 | . 6 11 9 7 7 7 7 1 . . . 3 4 . . . . . . . . . . . . Core 1 | . 7 . . . . . . 4 6 6 6 2 . 4 3 . . 5 2 . . . . . . Reactor 4 | . . . . . . . . . . . . . . . 1 5 4 1 7 10 10 11 12 8 6 Leg 21 | . 28 22 35 30 30 30 29 26 25 30 31 24 15 19 . . 5 25 25 25 21 18 24 22 13 Hover 1 | . . . . . . . . . . . . 6 6 3 27 27 20 . . . . . . . . Device 21 | . 2 21 17 23 23 22 22 17 18 16 18 16 20 19 21 22 23 19 20 22 22 28 25 22 24 Storage 5 | . 14 11 9 7 7 7 7 6 6 6 6 6 4 . . . 2 5 5 5 5 4 4 3 2 Processor 10 | . 10 10 9 12 7 7 7 19 20 18 18 18 16 11 11 11 11 10 10 10 9 3 3 10 10 Protection 5 | . . . . 1 7 5 7 8 7 7 6 6 4 9 16 16 9 14 14 9 5 3 4 3 3 Energy Gun 6 | . . . . . . . . . . . . . . 5 . . . . . . . 15 18 17 17 Energy Cannon 1 | . . . 2 1 1 . . . 1 2 . . . . . . . . . 3 6 6 1 . . Ballistic Cannon 3 | . 21 21 13 . . . . . . . . . . . . . . . . 1 5 . . . . Slashing Weapon 3 | . . . . 1 11 15 15 13 6 6 6 6 10 2 10 10 9 . . . . . . . . Piercing Weapon 1 | . . . . . . . . . 3 3 6 5 4 4 5 5 5 5 5 5 2 . . . . Peak Build Rating 259 | . 22 31 41 47 53 54 61 71 75 81 80 84 90 103 112 112 114 113 116 135 161 182 202 218 259 Average Rating 118 | . 11 26 37 45 50 51 56 68 71 77 80 80 83 82 106 111 102 103 115 125 136 176 198 211 221 On Entrance 86 | 6 6 22 31 41 47 51 53 61 71 71 80 80 83 9 103 110 112 86 113 116 129 158 181 202 216 Avg Prop Armor Cover (%) 9 | . . . . . . . . . . . . 6 11 10 . . 3 . . . 13 . . . 12 Naked Turns . | . . . . . . . . . . . . . . . . . . . . . . . . . . Heaviest Build 181 | 12 19 27 34 38 50 47 48 56 62 55 42 54 58 43 57 41 66 92 92 132 133 175 176 170 181 Greatest Support 205 | 20 20 30 60 55 55 55 66 66 66 81 81 81 66 90 51 55 124 126 126 127 160 150 175 175 205 Greatest Overweight (x) 2 | . . 1 . . . . . 1 2 . . 1 2 2 1 1 2 . . 1 1 1 1 1 1 Average Overweight (x) . | . . . . . . . . . . . . . . . . . . . . . . . . . . Largest Inventory Capacity 20 | . 8 10 15 15 15 15 15 15 15 15 15 15 15 5 5 5 10 10 10 20 20 20 20 20 20 Average Capacity 15 | . 8 9 11 15 15 15 15 15 15 15 15 15 14 5 5 5 7 10 10 17 20 20 20 20 19 Most Carried 20 | . 8 10 14 15 15 15 15 15 15 15 15 15 15 5 5 5 10 9 10 20 20 20 20 20 20 Average Carried 14 | . 7 9 10 13 13 14 14 14 14 14 15 14 13 4 4 5 6 7 9 16 18 19 19 19 19 Final Capacity 20 | 8 8 10 15 15 15 15 15 15 15 15 15 15 5 5 5 5 10 10 10 20 20 20 20 20 5 Final Carried 20 | 6 8 10 14 14 13 15 15 15 14 15 15 15 5 5 5 5 10 8 10 20 20 20 20 20 2 Class Distribution -------------------- 23% | Mutant 21% | Scavenger-Tank 14% | Scavenger-Mutant 11% | Scavenger-Gladiator 9% | Messiah-Tank 4% | Messiah-Mutant Dominant Class ---------------- Mutant | -10/Materials Mutant | -9/Materials Mutant | -8/Materials Gladiator | -7/Factory Mutant | -7/Lower Caves Mutant | -7/Zion Mutant | -6/Proximity Caves Derelict-Gladiator | -6/Factory Scavenger-Gladiator | -6/Lower Caves Scavenger-Gladiator | -6/Lower Caves Scavenger-Gladiator | -6/Data Miner Scavenger-Gladiator | -5/Proximity Caves Scavenger-Gladiator | -5/Factory Scavenger-Mutant | -5/Extension Commander-Gladiator | -5/Cetus Commander-Mutant | -5/Archives Scavenger-Mutant | -5/Hub_04(d) Messiah-Mutant | -4/Factory Messiah-Mutant | -4/Waste Scavenger-Mutant | -4/Factory Messiah-Mutant | -4/Armory Scavenger-Tank | -3/Research Messiah-Tank | -2/Research Messiah-Tank | -1/Access Scavenger-Tank | -1/Command Resources | -11 -10 -9 -8 -7 -7 -7 -6 -6 -6 -6 -6 -5 -5 -5 -5 -5 -5 -4 -4 -4 -4 -3 -2 -1 -1 ----------- Run | Yrd Mat Mat Mat Fac Low Zio Pro Fac Low Low Dat Pro Fac Ext Cet Arc Hub Fac Was Fac Arm Res Res Acc Com Matter Collected 13039 | 185 589 686 416 67 172 253 80 298 266 276 . 552 176 1282 162 101 344 73 68 575 1053 980 533 485 3367 Remotely 416 | . . . . . . . . . . . . . . . . . . . . . . . . . 416 Salvage Created 25911 | . 557 747 553 67 59 . 242 475 245 253 . 407 452 571 133 334 431 277 122 1545 834 1953 1747 953 12954 Parts 1001 | . 36 58 30 4 1 . 9 13 5 13 . 23 29 23 11 28 14 7 4 78 31 83 62 29 410 Haulers Intercepted 5 | . 2 1 . . . . . . . . . . . . . . . . . 1 . 1 . . . Recyclers Shooed 19 | . 2 . . . . . . . . . . . . 1 . . . . . 3 . . 4 . 9 Parts Field Recycled . | . . . . . . . . . . . . . . . . . . . . . . . . . . Retrieved Matter . | . . . . . . . . . . . . . . . . . . . . . . . . . . Parts Self-Destructed 74 | . . . . . 6 1 30 . 5 14 . 18 . . . . . . . . . . . . . Prevented 13 | . . . . . . . 13 . . . . . . . . . . . . . . . . . . Parts Restored . | . . . . . . . . . . . . . . . . . . . . . . . . . . Kills | -11 -10 -9 -8 -7 -7 -7 -6 -6 -6 -6 -6 -5 -5 -5 -5 -5 -5 -4 -4 -4 -4 -3 -2 -1 -1 ------- Run | Yrd Mat Mat Mat Fac Low Zio Pro Fac Low Low Dat Pro Fac Ext Cet Arc Hub Fac Was Fac Arm Res Res Acc Com Combat Hostiles Destroyed 308 | . 15 20 19 1 . . 2 4 9 3 . 7 7 3 1 . 4 . . 14 16 20 20 13 130 Melee 32 | . . . . 1 . . 2 4 4 3 . 6 3 3 . . 4 . . 1 . . . . 1 Guns 99 | . 5 . . . . . . . . . . . . . . . . . . 3 3 6 18 12 52 Cannons 70 | . 6 18 16 . . . . . . . . . . . 1 . . . . 9 12 8 . . . AOE 45 | . 4 2 3 . . . . . 5 . . 1 4 . . . . . . 1 . . . . 25 Classes Destroyed 28 | . 7 4 2 . . . . 1 1 1 . 1 2 . . . . . . . 1 1 . . 7 Worker 21 | . 1 1 . . . . . 2 . . . . 3 . . . . . . 1 . 1 1 . 11 Builder 12 | . 3 1 . . . . . 1 . . . . 3 . . . . . . 1 . 1 1 1 . Tunneler 2 | . . 1 . . . . . . . . . . . . . . . . . . . 1 . . . Hauler 5 | . 2 1 . . . . . . . . . . . . . . . . . 1 . 1 . . . Recycler 25 | . 1 2 2 . . . . 1 . . . . 1 2 . . 1 2 . 4 . 1 1 1 6 Carrier 1 | . . . . . . . . . . . . . . . . . . . . . . . . . 1 Mechanic 13 | . . . . . . . . . . . . . . . . . . . . . . . . . 13 Operator 15 | . . 1 . . . . . . . . . . . 1 . 9 . . . 1 1 . . . 2 Drone 2 | . . . . . . . . . . 1 . . 1 . . . . . . . . . . . . Watcher 8 | . 2 1 . . . . . . . . . . . . . . . . . . 1 3 . . 1 Swarmer 41 | . 6 7 6 . . . . . 1 . . 1 . . . . . . . . 2 . . 6 12 Saboteur 5 | . . . . . . . . . . . . . 1 . . . . . . . . . . . 4 Grunt 93 | . 9 5 4 . . . 1 3 4 . . 2 . 1 . . 3 . . 1 5 5 8 5 37 Brawler 19 | . . . . . . . . 1 . . . . . . . . 1 . . . . . 1 1 15 Duelist 13 | . . 1 . . . . . . 2 . . . . . . . . . . . . . 1 . 9 Protector 5 | . . . . . . . . . . . . . 1 . . . . . . . . . . . 4 Sentry 28 | . . 7 5 1 . . 1 . 1 . . 1 . 2 . . . . . . 2 2 2 . 4 Demolisher 1 | . . . . . . . . . . . . . . . . . . . . . 1 . . . . Specialist 6 | . . . . . . . . . 1 . . . 1 . . . . . . . 1 1 1 . 1 Hunter 28 | . . . 3 . . . . . . 2 . . . . . . . . . 8 3 7 2 . 3 Programmer 33 | . . . . . . . . . . . . 3 3 . . . . . . 4 2 4 5 1 11 Heavy 2 | . . . 1 . . . . . . . . . . . . . . . . 1 . . . . . Behemoth 3 | . . . . . . . . . . . . . . . . . . . . . . 1 . . 2 Cetus Guard 1 | . . . . . . . . . . . . . . . 1 . . . . . . . . . . M Guard 1 | . . . . . . . . . . . . . . . . . . . . . . . . . 1 Enhanced Q-Series 5 | . . . . . . . . . . . . . . . . . . . . . . . . . 5 Combat Programmer 2 | . . . . . . . . . . . . . . . . . . . . . . . . . 2 Investigator 2 | . . . . . . . . . . . . . . . . . . . . . . . . . 2 Striker 9 | . . . . . . . . . . . . . . . . . . . . . . . . . 9 Executioner 9 | . . . . . . . . . . . . . . . . . . . . . . . . . 9 Alpha 7 1 | . . . . . . . . . . . . . . . . . . . . . . . . . 1 Wizard 1 | . . . . . . . . . . . . . . . . . . . . . 1 . . . . Best Kill Streak 24 | . 5 5 10 1 . . 1 5 9 1 . 3 10 1 1 4 2 2 . 6 6 7 7 12 24 Combat Bots Only 18 | . 4 4 9 1 . . 1 4 9 1 . 3 4 1 1 . 2 . . 4 6 6 7 12 18 Max Kills in Single Turn 6 | . 5 2 2 1 . . 1 1 2 1 . 1 6 1 1 1 1 1 . 1 1 2 1 2 3 Gunslinging 2 | . . . . . . . . . . . . . . . . . . . . . . . . 1 2 Exploded 4 | . 4 2 2 . . . . . 2 . . 1 4 . . . . . . 1 . . . . 3 Melee 1 | . . . . 1 . . 1 1 1 1 . 1 1 1 . . 1 . . 1 . . . . 1 Uniques/NPCs Destroyed 2 | . . . . . . . . . . . . . . . 1 . . . . . . . . . 1 A7 (-5/Cetus) MAIN.C Shell (-1/Command) Combat | -11 -10 -9 -8 -7 -7 -7 -6 -6 -6 -6 -6 -5 -5 -5 -5 -5 -5 -4 -4 -4 -4 -3 -2 -1 -1 -------- Run | Yrd Mat Mat Mat Fac Low Zio Pro Fac Low Low Dat Pro Fac Ext Cet Arc Hub Fac Was Fac Arm Res Res Acc Com Hostile Shots Fired 2583 | . 62 70 59 37 . . 56 13 66 49 . 46 157 34 . 5 57 . . 125 414 296 133 42 862 Missed 1007 | . 17 16 29 18 . . 19 1 20 14 . 17 55 13 . 4 13 . . 50 170 119 50 14 368 Deflected 3 | . . . . . . . . . . . . . . . . . . . . . . 3 . . . Hits 1576 | . 45 54 30 19 . . 37 12 46 35 . 29 102 21 . 1 44 . . 75 244 177 83 28 494 Melee 27 | . . 1 . . . . 3 . 14 . . . . . . . 1 . . . . . 2 . 6 Projectile 1549 | . 45 53 30 19 . . 34 12 32 35 . 29 102 21 . 1 43 . . 75 244 177 81 28 488 AOE 11 | . . . . . . . . . . . . . 1 . . . . . . . 1 . . . 9 Critical Strikes 79 | . . 2 2 . . . . 2 1 1 . 5 7 1 . . 4 . . 5 11 10 4 1 23 Part Disruptions 20 | . . . . . . . . . . . . 1 . . . . . . . . . . . . 19 Damage Taken 26566 | . 528 603 571 111 . . 312 175 580 559 . 584 2044 508 41 28 1049 . . 1191 4383 1344 1241 367 10347 Core 2499 | . 95 138 124 16 . . 57 . 39 52 . 23 497 39 . . 75 . . 93 286 22 100 . 843 Absorbed by Shields 7101 | . . . . 32 . . 129 55 182 30 . . 85 . 14 . . . . 375 485 922 1021 381 3390 Reduced by Siege Mode 323 | . . . . . . . . . . . . . . . . . . . . . 174 . . . 149 Ignored by Resistances 800 | . . . . . . . . . . . . . . . . . . . . . . . . . 800 Regen/Repaired (Parts) 1007 | . . . . . . 452 . . . 96 5 44 117 223 70 . . . . . . . . . . Core Remaining (%) 77 | 100 62 65 77 . . . 89 . . . . 83 . . . . 78 . . . 62 98 92 . 41 Volleys Fired 751 | . 46 55 44 . 13 . . . 10 5 . 1 6 24 6 . . 1 . 72 65 72 60 27 244 Largest 5 | . 2 2 2 . 1 . . . 1 1 . 1 1 2 1 . . 1 . 2 3 5 5 5 5 Hottest 486 | . 66 66 66 . 90 . . . 90 90 . 39 39 300 47 . . 30 . 176 360 435 417 354 486 Shots Fired 1970 | . 93 108 84 . 12 . . . 10 5 . 1 6 35 6 . . 1 1 94 122 194 241 105 852 Gun 1327 | . 42 . . . . . . . . . . . 4 35 . . . 1 1 26 9 119 229 98 763 Cannon 557 | . 51 106 80 . 12 . . . 6 5 . . . . 6 . . . . 68 113 75 12 3 20 Launcher 86 | . . 2 4 . . . . . 4 . . 1 2 . . . . . . . . . . 4 69 Special . | . . . . . . . . . . . . . . . . . . . . . . . . . . Kinetic 418 | . 93 106 80 . . . . . . . . . 4 . 6 . . 1 1 50 76 . . . 1 Thermal 1416 | . . . . . 12 . . . 6 5 . . . 35 . . . . . 43 46 157 237 101 774 Explosive 18 | . . 2 4 . . . . . 4 . . 1 2 . . . . . . . . . . 4 1 Electromagnetic 117 | . . . . . . . . . . . . . . . . . . . . . . 37 4 . 76 Phasic 1 | . . . . . . . . . . . . . . . . . . . . 1 . . . . . Robot Hit Streak 43 | . 8 5 10 . . . . . 5 . . . 1 6 11 . . 1 2 6 9 9 11 43 36 Robot Miss Streak 6 | . 6 5 3 . . . . . 1 1 . . 2 2 1 . . . . 4 5 5 5 2 5 Penetration Max 1 | . . . . . . . . . . . . . . . . . . . . 1 . . . . . Secondary Targets 27 | . 1 . . . . . . . . . . . . . . . . . . . . . 3 4 19 Max Gunslinging Chain 2 | . 1 . . . . . . . . . . . . . . . . . . . . . 1 1 2 Shots Hit Robots 1402 | . 43 57 53 4 1 . 10 18 13 18 . 17 6 39 21 11 12 3 6 50 79 102 150 74 615 Core Hits 939 | . 26 29 30 2 . . 2 11 21 5 . 10 32 13 8 6 6 2 2 27 35 44 57 29 542 Critical Kills 8 | . . . . . . . . . . . . . . . . . . . . 6 1 1 . . . Critical Parts Destroyed 11 | . . . . . . . . . . . . . . . . . . . . 11 . . . . . Critical Strikes 64 | . 4 2 1 1 . . . 2 1 2 . 2 . 3 1 . 1 1 1 20 8 2 . . 12 Burn 14 | . . . . . . . . . . . . . . 2 . . . . . . . . . . 12 Meltdown 2 | . . . . . . . . . . . . . . . . . . . . . 1 1 . . . Destroy 18 | . . . . . . . . . . . . . . . . . . . . 18 . . . . . Blast 14 | . 4 2 1 . . . . . . . . . . . . . . . . . 7 . . . . Corrupt 1 | . . . . . . . . . . . . . . . . . . . . . . 1 . . . Sever 6 | . . . . 1 . . . 2 . 1 . . . 1 . . 1 . . . . . . . . Impale 9 | . . . . . . . . . 1 1 . 2 . . 1 . . 1 1 2 . . . . . Melee Attacks 270 | . . . . 6 4 . 17 29 21 21 . 26 12 32 16 17 26 4 5 16 18 . . . . Impact 3 | . . . . 3 . . . . . . . . . . . . . . . . . . . . . Slashing 134 | . . . . 3 4 . 17 29 5 5 . 5 6 7 14 15 24 . . . . . . . . Piercing 133 | . . . . . . . . . 16 16 . 21 6 25 2 2 2 4 5 16 18 . . . . Sneak Attacks 54 | . . . . . . . 2 3 2 1 . . 2 7 16 10 1 2 . 8 . . . . . Combat Hostiles 4 | . . . . . . . . . 2 1 . . 1 . . . . . . . . . . . . Follow-up Attacks 24 | . . . . 1 . . 3 3 2 5 . 3 1 2 2 1 1 . . . . . . . . Damage Inflicted 65240 | . 1456 1423 1519 116 77 . 462 770 1403 776 . 772 1687 1493 1187 1254 598 161 287 2278 3143 3843 5463 2354 32718 Guns 29387 | . 237 . . . . . . . . . . . . 301 . . . 18 18 162 233 2208 4966 2317 18927 Cannons 9049 | . 540 1362 1097 . . . . . . . . . . . 217 . . . . 1062 2550 1600 260 37 324 Explosions 17013 | . 615 58 422 . . . . . 947 . . 77 1420 . . . . . . 406 . . . . 13068 Melee 8953 | . . . . 116 77 . 462 766 456 776 . 695 267 1192 970 1254 598 143 269 597 315 . . . . Ramming 838 | . 64 3 . . . . . 4 . . . . . . . . . . . 51 45 35 237 . 399 Kinetic 5666 | . 777 1362 1097 . . . . . . . . . . . 217 . . 18 18 561 1596 . . . 20 Thermal 34706 | . . . . . . . . . . . . . . 301 . . . . . 1069 1187 2928 5103 2354 21764 Explosive 4084 | . 615 58 422 . . . . . 947 . . 77 1420 . . . . . . . . . . . 545 Electromagnetic 10993 | . . . . . . . . . . . . . . . . . . . . . . 880 123 . 9990 Impact 23 | . . . . 23 . . . . . . . . . . . . . . . . . . . . . Slashing 4782 | . . . . 93 77 . 462 766 78 174 . 75 44 290 871 1254 598 . . . . . . . . Piercing 4148 | . . . . . . . . . 378 602 . 620 223 902 99 . . 143 269 597 315 . . . . Highest Corruption 30 | . 2 . . 7 19 . . . 10 . . 2 10 10 12 12 20 . . 1 16 . 20 2 30 Average Corruption 7 | . 2 . . 7 11 . . . 10 . . 1 5 10 10 9 6 . . 1 9 . 7 1 8 Corruption Purged 14 | . . . . . . . . . . . . . . . . 7 . . . . . . . . 7 Corruption Blocked . | . . . . . . . . . . . . . . . . . . . . . . . . . . Effects 276 | . 9 . . 5 10 . . . 1 . . 8 4 40 10 16 17 . . 1 36 . 10 . 109 Message Errors 67 | . 1 . . 3 3 . . . . . . 2 2 14 4 4 4 . . . 8 . 3 . 19 Matter Fused 52 | . 2 . . . . . . . 1 . . 2 . 13 1 4 2 . . . 8 . 1 . 18 Heat Flow Errors 25 | . . . . . 1 . . . . . . 1 1 2 . 2 4 . . . 3 . . . 11 Energy Discharges 27 | . 1 . . 1 3 . . . . . . . 1 2 1 3 1 . . . 3 . 1 . 10 Parts Rejected 6 | . 1 . . . . . . . . . . . . . . . . . . . 2 . . . 3 Parts Fused 6 | . . . . . . . . . . . . . . . . . . . . . 1 . 1 . 4 Data Loss (minor) 36 | . 2 . . 1 2 . . . . . . 1 . 3 3 2 3 . . . 3 . 2 . 14 Data Loss (major) 11 | . 1 . . . . . . . . . . 2 . . . 1 . . . . 2 . . . 5 Misfires 16 | . 1 . . . . . . . . . . . . 4 . . . . . . 3 . 1 . 7 Alerts 7 | . . . . . . . . . . . . . . 2 1 . 1 . . . 1 . . . 2 Misdirections 2 | . . . . . . . . . . . . . . . . . 2 . . . . . . . . Weapon Failures 21 | . . . . . 1 . . . . . . . . . . . . . . 1 2 . 1 . 16 Overload Shots 4 | . . . . . . . . . . . . . . 4 . . . . . . . . . . . Overflow Damage 1894 | . 133 15 11 . 55 . 101 37 128 126 . 153 . 134 . 419 86 . 37 132 78 31 . . 218 Projectiles 155 | . . 15 . . . . . . . . . . . . . . . . . 11 78 31 . . 20 Explosions 396 | . 133 . 11 . . . . . 23 . . . . . . . . . . 119 . . . . 110 Melee 1343 | . . . . . 55 . 101 37 105 126 . 153 . 134 . 419 86 . 37 2 . . . . 88 Knockbacks 32 | . 6 6 3 . . . . 1 . . . . . . . . . . . 2 10 . 3 . 1 Impact 4 | . . . . . . . . 1 . . . . . . . . . . . . . . 2 . 1 Kinetic 24 | . 5 6 2 . . . . . . . . . . . . . . . . 2 9 . . . . Secondary 4 | . 1 . 1 . . . . . . . . . . . . . . . . . 1 . 1 . . Self-Inflicted Damage 338 | . 110 . . . . . . . . . . . 96 . . . . . . . . . . . 132 Shots 17 | . 1 . . . . . . . . . . . 2 . . . . . . . . . . . 14 Rammed . | . . . . . . . . . . . . . . . . . . . . . . . . . . Targets Rammed 44 | . 15 2 . . . . . 1 . . . . . . . . . . . 3 1 4 10 . 8 Kicked 44 | . 15 2 . . . . . 1 . . . . . . . . . . . 3 1 4 10 . 8 Crushed . | . . . . . . . . . . . . . . . . . . . . . . . . . . Highest Temperature 434 | . 138 421 24 . 214 . . 112 144 72 . 220 301 318 . 193 132 . 6 380 434 415 364 306 414 Average Temperature 91 | . 58 67 8 . 102 . . 53 63 34 . 112 130 114 . 89 50 . 4 101 123 121 74 101 94 Received Heat Transfer 2730 | . 111 168 99 36 . . 73 106 155 . . 45 9 171 . . 291 . . 48 407 52 135 8 816 Effects 8 | . . 2 . . . . . . . . . . . . . . . . . 2 2 . . . 2 Shutdowns 2 | . . 1 . . . . . . . . . . . . . . . . . . 1 . . . . Energy Bleed 2 | . . . . . . . . . . . . . . . . . . . . . . . . . 2 Interference 2 | . . . . . . . . . . . . . . . . . . . . 2 . . . . . Matter Decay 1 | . . 1 . . . . . . . . . . . . . . . . . . . . . . . Short Circuit 1 | . . . . . . . . . . . . . . . . . . . . . 1 . . . . Siege Activations 2 | . . . . . . . . . . . . . . . . . . . . . 1 . . . 1 Total Turns 50 | . . . . . . . . . . . . . . . . . . . . . 31 . . . 19 Longest Duration 31 | . . . . . . . . . . . . . . . . . . . . . 31 . . . 19 Martial Activations . | . . . . . . . . . . . . . . . . . . . . . . . . . . Shielding Activations 2 | . . . . . . . . . . . . . . . . . . . . . . 2 . . . Total Turns 41 | . . . . . . . . . . . . . . . . . . . . . . 41 . . . Longest Duration 35 | . . . . . . . . . . . . . . . . . . . . . . 35 . . . Robots Disrupted 2 | . . . . . . . . . . . . . . . . . . . . . . . . . 2 Combat Hostiles 1 | . . . . . . . . . . . . . . . . . . . . . . . . . 1 Robots Corrupted 57 | . . . . . . . . . . . . . . . . . . . . 1 . 5 1 . 50 Combat Hostiles 47 | . . . . . . . . . . . . . . . . . . . . . . 5 1 . 41 Parts Fried 126 | . . . . . . . . . . . . . . . . . . . . 3 . 7 3 . 113 Impact Corruptions 6 | . . . . . . . . . . . . . . . . . . . . 1 . . . . 5 Robots Melted 15 | . . . . . . . . . . . . . . . . . . . . . 1 1 1 1 11 Combat Hostiles 15 | . . . . . . . . . . . . . . . . . . . . . 1 1 1 1 11 Parts Melted 97 | . . . . . . . 1 . . . . . . 3 . . . . . 2 4 10 18 9 50 Heat Transferred 35867 | . . . . . . . . . . . . . . 599 . . . . . 777 1302 3295 5772 2886 21236 Parts Sabotaged 2 | . . . . . . . . . . . . . . . . . . . . . . . . . 2 Parts Stolen 2 | . . . . . . . . . 2 . . . . . . . . . . . . . . . . Parts Stripped . | . . . . . . . . . . . . . . . . . . . . . . . . . . Power Chain Reactions 19 | . . . . . . . . . . . . . . . . . . . . . . . . . 19 Alert | -11 -10 -9 -8 -7 -7 -7 -6 -6 -6 -6 -6 -5 -5 -5 -5 -5 -5 -4 -4 -4 -4 -3 -2 -1 -1 ------- Run | Yrd Mat Mat Mat Fac Low Zio Pro Fac Low Low Dat Pro Fac Ext Cet Arc Hub Fac Was Fac Arm Res Res Acc Com Maximum Alert Level 5 | . . . 2 1 . . . . . . . . 1 1 . . 1 . . 3 2 3 5 4 5 Low Security (%) 46 | . 100 100 25 87 . . . 100 . . . . 86 91 100 100 80 100 100 73 . 12 . . 7 Level 1 10 | . . . 41 12 . . . . . . . . 13 8 . . 19 . . 20 26 38 18 . . Level 2 10 | . . . 32 . . . . . . . . . . . . . . . . 5 73 49 13 . . Level 3 3 | . . . . . . . . . . . . . . . . . . . . . . . 27 11 6 Level 4 5 | . . . . . . . . . . . . . . . . . . . . . . . 36 88 1 Level 5 2 | . . . . . . . . . . . . . . . . . . . . . . . 3 . 6 High Security 21 | . . . . . . . . . . . . . . . . . . . . . . . . . 77 Max Security . | . . . . . . . . . . . . . . . . . . . . . . . . . . Sterilizations 1 | . . . 1 . . . . . . . . . . . . . . . . . . . . . . Peak Influence 6030 | . 191 180 530 210 . . . 120 . . . . 331 224 174 161 230 182 51 729 548 714 1812 1237 6030 Initial 1080 | . . 16 73 210 . . . 11 . . . . . 112 70 9 23 91 51 . 357 255 381 1080 770 Average 1378 | . 79 125 304 155 . . . 42 . . . . 34 132 98 104 142 134 5 154 441 400 983 1159 4342 Influence Increases 17955 | . 473 590 784 58 5 . 610 162 222 75 . 140 442 654 144 340 585 127 . 1327 903 1209 1967 452 6686 Destroy 0b10 Robot/C 9300 | . 300 400 380 20 . . 400 80 220 60 . 140 120 440 80 120 180 40 . 680 480 400 720 300 3740 Destroy 0b10 Robot/NC 690 | . 45 40 10 . 5 . 10 20 . 5 . . 40 25 5 45 25 15 . 60 15 40 40 10 235 Destroy Leader 1474 | . 78 114 110 10 . . 20 10 . 10 . . 20 30 . . 32 12 . 128 114 104 146 30 506 Allied During Kill 2788 | . . . . . . . 165 . 2 . . . . 135 57 165 84 14 . 298 71 14 252 31 1500 Successful Hack 57 | . . 2 . 12 . . . . . . . . 4 . . . . . . . . . 24 . 15 Disable Machine 405 | . 30 15 30 15 . . . . . . . . . . . . . 30 . 30 45 15 30 . 165 Destroy Structure 1231 | . 20 19 23 1 . . . 7 . . . . 26 24 2 10 68 16 . 116 118 58 177 66 480 Partial Spotted 90 | . . . . . . . . . . . . . . . . . 30 . . 15 . 15 15 . 15 Lose Combat Pursuer 270 | . . . 45 . . . 15 45 . . . . . . . . 30 . . . 60 15 15 15 30 Miscellaneous 1650 | . . . 186 . . . . . . . . . 232 . . . 136 . . . . 548 548 . . Influence Decreases 11935 | . 433 456 496 412 113 . 592 166 236 75 . 140 213 757 246 297 466 165 148 598 1144 1019 845 1048 1870 Entered New Map 2911 | . . 24 101 252 41 . . 7 6 . . . . 117 56 15 44 95 97 . 372 233 297 720 434 Time Decay 5978 | . 413 422 382 160 72 . 432 149 199 65 . 120 83 450 170 222 222 70 51 396 422 486 428 238 326 Search Patrol Dispatched 200 | . . . . . . . . . . . . . . . . . . . . . . 200 . . . Lost Part 633 | . 20 10 13 . . . . . . 10 . 20 130 10 . . 30 . . 10 170 . 30 30 150 Lost Ally 2213 | . . . . . . . 160 10 31 . . . . 180 20 60 170 . . 192 180 100 90 60 960 Squads Dispatched 83 | . 4 1 1 . . . 1 1 . . . . 2 1 . . 3 . . 6 6 7 8 2 40 Investigation 5 | . 1 . . . . . . . . . . . . 1 . . 1 . . . 1 1 . . . Extermination 14 | . . . . . . . . 1 . . . . 1 . . . . . . 2 1 3 3 1 2 Reinforcement 21 | . 3 1 1 . . . . . . . . . 1 . . . . . . 4 4 2 3 . 2 Assault 43 | . . . . . . . 1 . . . . . . . . . 2 . . . . 1 2 1 36 Garrison . | . . . . . . . . . . . . . . . . . . . . . . . . . . Intercept . | . . . . . . . . . . . . . . . . . . . . . . . . . . Searches Triggered 2 | . . . . . . . . . . . . . . . . . . . . . . 2 . . . Data Miner Redirects 3 | . . . . . . . . . . . . . . 1 . . . . . . . . 1 . 1 Construction Impeded 1 | . . . . . . . . . . . . . 1 . . . . . . . . . . . . Haulers Reinforced 1 | . . . . . . . . . . . . . . . . . . . . 1 . . . . . Active Scanning Responses . | . . . . . . . . . . . . . . . . . . . . . . . . . . Cargo Convoy Interrupts 1 | . . . . . . . . . . . . . 1 . . . . . . . . . . . . Stealth | -11 -10 -9 -8 -7 -7 -7 -6 -6 -6 -6 -6 -5 -5 -5 -5 -5 -5 -4 -4 -4 -4 -3 -2 -1 -1 --------- Run | Yrd Mat Mat Mat Fac Low Zio Pro Fac Low Low Dat Pro Fac Ext Cet Arc Hub Fac Was Fac Arm Res Res Acc Com Distress Signals 18 | . 1 4 1 . . . . 1 . . . . . . 1 . 1 . . 1 1 . 2 . 5 Communications Jammed 440 | . . . . . . . . . . . . . . . . . 7 . . 136 12 97 85 . 103 Distress Signals 427 | . . . . . . . . . . . . . . . . . 7 . . 130 12 97 84 . 97 Times Spotted 631 | . 24 27 23 5 . . 22 9 11 2 . 7 25 21 3 4 18 5 . 42 35 52 40 16 240 Peak Tracking Total 17 | . 6 5 4 4 . . 9 6 9 2 . 3 16 4 5 1 5 2 . 5 8 15 6 4 17 Tactical Retreats 13 | . . . 2 . . . 1 1 . . . . . . . . 1 . . . 3 1 1 1 2 Traps | -11 -10 -9 -8 -7 -7 -7 -6 -6 -6 -6 -6 -5 -5 -5 -5 -5 -5 -4 -4 -4 -4 -3 -2 -1 -1 ------- Run | Yrd Mat Mat Mat Fac Low Zio Pro Fac Low Low Dat Pro Fac Ext Cet Arc Hub Fac Was Fac Arm Res Res Acc Com Traps Triggered 24 | . 2 . . . . . . . . . . . 1 1 . . . 1 . 1 3 2 2 . 11 Indirectly 11 | . . . . . . . . . . . . . . . . . . . . . . . . . 11 Trap Hack Attempts . | . . . . . . . . . . . . . . . . . . . . . . . . . . Triggered . | . . . . . . . . . . . . . . . . . . . . . . . . . . Disarmed . | . . . . . . . . . . . . . . . . . . . . . . . . . . Reprogrammed . | . . . . . . . . . . . . . . . . . . . . . . . . . . Reused . | . . . . . . . . . . . . . . . . . . . . . . . . . . Traps Extracted . | . . . . . . . . . . . . . . . . . . . . . . . . . . Installed 1 | . . . . . . . 1 . . . . . . . . . . . . . . . . . . Triggered . | . . . . . . . . . . . . . . . . . . . . . . . . . . Machines | -11 -10 -9 -8 -7 -7 -7 -6 -6 -6 -6 -6 -5 -5 -5 -5 -5 -5 -4 -4 -4 -4 -3 -2 -1 -1 ---------- Run | Yrd Mat Mat Mat Fac Low Zio Pro Fac Low Low Dat Pro Fac Ext Cet Arc Hub Fac Was Fac Arm Res Res Acc Com Machines Disabled 28 | . 2 1 2 1 . . . . 1 . . . . . . . . 2 . 2 3 1 2 . 11 Max in Single Turn 2 | . 1 1 1 1 . . . . 1 . . . . . . . . . . 2 1 1 . . 1 Garrison Access 4 | . . . . 1 . . . 1 . . . . . . . . 1 . . . . . . 1 . Network Hub 1 | . . . . . . . . . . . . . . . . . 1 . . . . . . . . Machines Repaired . | . . . . . . . . . . . . . . . . . . . . . . . . . . Machines Dismantled . | . . . . . . . . . . . . . . . . . . . . . . . . . . Machines Sabotaged . | . . . . . . . . . . . . . . . . . . . . . . . . . . Overloaded Fab Kills . | . . . . . . . . . . . . . . . . . . . . . . . . . . Hacking | -11 -10 -9 -8 -7 -7 -7 -6 -6 -6 -6 -6 -5 -5 -5 -5 -5 -5 -4 -4 -4 -4 -3 -2 -1 -1 --------- Run | Yrd Mat Mat Mat Fac Low Zio Pro Fac Low Low Dat Pro Fac Ext Cet Arc Hub Fac Was Fac Arm Res Res Acc Com Machines Accessed 25 | . . 2 3 4 1 . . 1 . 1 3 . 1 . 1 . . . . 3 . 1 1 1 2 Terminals 10 | . . 1 2 3 . . . . . . . . . . 1 . . . . . . 1 . . 2 Fabricators 1 | . . . . . . . . . . . . . . . . . . . . 1 . . . . . Repair Stations 1 | . . . . . . . . . . . . . 1 . . . . . . . . . . . . Recycling Units 2 | . . . 1 . . . . . . . . . . . . . . . . 1 . . . . . Scanalyzers 3 | . . 1 . . . . . . . . . . . . . . . . . 1 . . 1 . . Garrison Access 3 | . . . . 1 . . . 1 . . . . . . . . . . . . . . . 1 . Total Hacks 71 | . . 5 4 8 1 . . 1 . 1 26 . 2 . 2 . . . . 8 . 2 5 1 5 Successful 50 | . . 2 3 3 1 . . 1 . 1 26 . 2 . . . . . . 4 . 1 3 1 2 Failed 19 | . . 2 1 5 . . . . . . . . . . 2 . . . . 3 . 1 2 . 3 Catastrophic 9 | . . 2 . 3 . . . . . . . . . . 2 . . . . . . . 1 . 1 Database Lockouts 2 | . . 1 . . . . . . . . . . . . . . . . . 1 . . . . . Manual 92 | . 1 3 . 1 . . . 13 . . . . 3 8 1 . 5 3 . 10 7 6 13 4 14 Terminals 22 | . . 3 3 7 . . . . . . . . . . 2 . . . . . . 2 . . 5 Fabricators 2 | . . . . . . . . . . . . . . . . . . . . 2 . . . . . Repair Stations 2 | . . . . . . . . . . . . . 2 . . . . . . . . . . . . Recycling Units 2 | . . . 1 . . . . . . . . . . . . . . . . 1 . . . . . Scanalyzers 12 | . . 2 . . . . . . . . . . . . . . . . . 5 . . 5 . . Garrison Access 3 | . . . . 1 . . . 1 . . . . . . . . . . . . . . . 1 . Terminal Hacks 36 | . . 1 2 2 1 . . . . 1 26 . . . . . . . . . . 1 . . 2 Record 6 | . . . . . . . . . . . 6 . . . . . . . . . . . . . . Part Schematic 13 | . . . . . . . . . . . 13 . . . . . . . . . . . . . . Robot Schematic 4 | . . . . . . . . . . . 4 . . . . . . . . . . . . . . Robot Analysis 1 | . . . 1 . . . . . . . . . . . . . . . . . . . . . . Prototype ID Bank 3 | . . . . . . . . . . . 3 . . . . . . . . . . . . . . Open Door 2 | . . . . . 1 . . . . 1 . . . . . . . . . . . . . . . Open DSF 1 | . . . . . . . . . . . . . . . . . . . . . . 1 . . . Branch Access Points 2 | . . . 1 1 . . . . . . . . . . . . . . . . . . . . . Recall Reinforcements 1 | . . 1 . . . . . . . . . . . . . . . . . . . . . . . Hauler Manifests 1 | . . . . 1 . . . . . . . . . . . . . . . . . . . . . Disengage Seal 2 | . . . . . . . . . . . . . . . . . . . . . . . . . 2 Fabricator Hacks . | . . . . . . . . . . . . . . . . . . . . . . . . . . Repair Station Hacks 2 | . . . . . . . . . . . . . 2 . . . . . . . . . . . . Scan Component 1 | . . . . . . . . . . . . . 1 . . . . . . . . . . . . Repair 1 | . . . . . . . . . . . . . 1 . . . . . . . . . . . . Recycling Unit Hacks 2 | . . . 1 . . . . . . . . . . . . . . . . 1 . . . . . Retrieve Components 2 | . . . 1 . . . . . . . . . . . . . . . . 1 . . . . . Scanalyzer 7 | . . 1 . . . . . . . . . . . . . . . . . 3 . . 3 . . Insert Component 1 | . . . . . . . . . . . . . . . . . . . . 1 . . . . . Analyze 1 | . . . . . . . . . . . . . . . . . . . . 1 . . . . . Retrieve Study 5 | . . 1 . . . . . . . . . . . . . . . . . 1 . . 3 . . Garrison Access Hacks 3 | . . . . 1 . . . 1 . . . . . . . . . . . . . . . 1 . Seal Access 3 | . . . . 1 . . . 1 . . . . . . . . . . . . . . . 1 . Unauthorized Hacks . | . . . . . . . . . . . . . . . . . . . . . . . . . . Terminals . | . . . . . . . . . . . . . . . . . . . . . . . . . . Fabricators . | . . . . . . . . . . . . . . . . . . . . . . . . . . Repair Stations . | . . . . . . . . . . . . . . . . . . . . . . . . . . Recycling Units . | . . . . . . . . . . . . . . . . . . . . . . . . . . Scanalyzers . | . . . . . . . . . . . . . . . . . . . . . . . . . . Garrison Access . | . . . . . . . . . . . . . . . . . . . . . . . . . . Data Cores Recovered 2 | . . 1 . . . . . . . . . . . . . . . . . . . . . . 1 Used . | . . . . . . . . . . . . . . . . . . . . . . . . . . Hacking Detections 13 | . . 2 1 3 . . . . . . . . 1 . 1 . . . . 2 . 1 1 . 1 Full Trace Events . | . . . . . . . . . . . . . . . . . . . . . . . . . . Feedback Events . | . . . . . . . . . . . . . . . . . . . . . . . . . . Feedback Blocked . | . . . . . . . . . . . . . . . . . . . . . . . . . . Robot Schematics Acquired 4 | . . . . . . . . . . . 4 . . . . . . . . . . . . . . Robots Built . | . . . . . . . . . . . . . . . . . . . . . . . . . . Authchips . | . . . . . . . . . . . . . . . . . . . . . . . . . . Time . | . . . . . . . . . . . . . . . . . . . . . . . . . . Total Robot Build Rating . | . . . . . . . . . . . . . . . . . . . . . . . . . . Part Schematics Acquired 14 | . . . . . . . . . . . 13 . . . . . . . . 1 . . . . . Parts Built . | . . . . . . . . . . . . . . . . . . . . . . . . . . Authchips . | . . . . . . . . . . . . . . . . . . . . . . . . . . Time . | . . . . . . . . . . . . . . . . . . . . . . . . . . Total Part Build Rating . | . . . . . . . . . . . . . . . . . . . . . . . . . . Part Studies Acquired 5 | . . 1 . . . . . . . . . . . . . . . . . 1 . . 3 . . Parts Repaired 1 | . . . . . . . . . . . . . 1 . . . . . . . . . . . . Time 44 | . . . . . . . . . . . . . 44 . . . . . . . . . . . . Parts Recycled . | . . . . . . . . . . . . . . . . . . . . . . . . . . Recycled Matter . | . . . . . . . . . . . . . . . . . . . . . . . . . . Retrieved Matter . | . . . . . . . . . . . . . . . . . . . . . . . . . . Retrieved Components 5 | . . . 3 . . . . . . . . . . . . . . . . 2 . . . . . Parts Scanalyzed 1 | . . . . . . . . . . . . . . . . . . . . 1 . . . . . Part Schematics Acquired 1 | . . . . . . . . . . . . . . . . . . . . 1 . . . . . Parts Damaged 1 | . . . . . . . . . . . . . . . . . . . . 1 . . . . . Bothacking | -11 -10 -9 -8 -7 -7 -7 -6 -6 -6 -6 -6 -5 -5 -5 -5 -5 -5 -4 -4 -4 -4 -3 -2 -1 -1 ------------ Run | Yrd Mat Mat Mat Fac Low Zio Pro Fac Low Low Dat Pro Fac Ext Cet Arc Hub Fac Was Fac Arm Res Res Acc Com Used RIF Installer . | . . . . . . . . . . . . . . . . . . . . . . . . . . Robots Hacked . | . . . . . . . . . . . . . . . . . . . . . . . . . . Non-combat . | . . . . . . . . . . . . . . . . . . . . . . . . . . Combat . | . . . . . . . . . . . . . . . . . . . . . . . . . . Robot Hacks Applied . | . . . . . . . . . . . . . . . . . . . . . . . . . . Relay Couplers Released 3 | . . . . . . . . . . . . . . . . . 3 . . . . . . . . Machine Destruction 3 | . . . . . . . . . . . . . . . . . 3 . . . . . . . . Fabnet Peak Effective % . | . . . . . . . . . . . . . . . . . . . . . . . . . . Robots Rewired 14 | . . . . . . . 2 . 1 . . . . 11 . . . . . . . . . . . Allies Hacked 8 | . . . . . . . . . . . . . . . . . . . . 5 . . 1 . 2 Hacks Repelled . | . . . . . . . . . . . . . . . . . . . . . . . . . . Allies | -11 -10 -9 -8 -7 -7 -7 -6 -6 -6 -6 -6 -5 -5 -5 -5 -5 -5 -4 -4 -4 -4 -3 -2 -1 -1 -------- Run | Yrd Mat Mat Mat Fac Low Zio Pro Fac Low Low Dat Pro Fac Ext Cet Arc Hub Fac Was Fac Arm Res Res Acc Com Total Allies 145 | . . . . . . 6 2 2 1 . . . 1 23 5 . 3 2 . 13 10 4 9 2 62 Largest Group 29 | . . . . . . 6 7 1 1 . . . 1 9 12 11 9 2 2 6 5 4 5 3 29 Highest-Rated Group 2627 | . . . . . . 206 226 35 35 . . . 28 517 818 730 629 206 206 398 307 116 399 244 2627 Highest-Rated Ally 269 | . . . . . . 40 40 35 35 . . . 28 159 159 96 96 103 103 165 96 81 115 122 269 Zionite Dispatches 20 | . . . . . . . . 2 . . . . 1 3 . . 2 1 . 3 2 . 5 1 . Heavy 3 | . . . . . . . . . . . . . . . . . 1 1 . . . . . 1 . Light 3 | . . . . . . . . . . . . . . 1 . . . . . 1 . . 1 . . Fire 3 | . . . . . . . . . . . . . . . . . . . . 1 1 . 1 . . Hacker 1 | . . . . . . . . . . . . . . . . . . . . . 1 . . . . Demo 1 | . . . . . . . . 1 . . . . . . . . . . . . . . . . . Hero 1 | . . . . . . . . . . . . . . . . . . . . 1 . . . . . Offense Resupply 1 | . . . . . . . . 1 . . . . . . . . . . . . . . . . . Defense Resupply 1 | . . . . . . . . . . . . . . . . . 1 . . . . . . . . Infowar Resupply 3 | . . . . . . . . . . . . . 1 1 . . . . . . . . 1 . . Hover Resupply 1 | . . . . . . . . . . . . . . 1 . . . . . . . . . . . Zionite Resupply 2 | . . . . . . . . . . . . . . . . . . . . . . . 2 . . Total Orders 11 | . . . . . . . . 1 . . . . 1 2 . . 1 . . . 1 . 5 . . STAY 1 | . . . . . . . . . . . . . . . . . . . . . 1 . . . . DROP 10 | . . . . . . . . 1 . . . . 1 2 . . 1 . . . . . 5 . . Ally Attacks 1066 | . . . . . . . 80 . 21 . . . . 139 43 35 45 10 . 122 43 5 77 10 436 Total Damage 43392 | . . . . . . . 2128 . 491 . . . . 2179 1146 1118 1825 399 . 4478 1062 208 3357 647 24354 Kills 206 | . . . . . . . 18 . 4 . . . . 21 4 6 10 3 . 24 9 . 21 2 84 Allies Corrupted 18 | . . . . . . . 1 . . . . . . 1 . . 5 . . 1 2 . . . 8 Allies Melted 1 | . . . . . . . . . . . . . . . . . . . . . . . . . 1 X0-1V1 Amusement Gains 429 | . 12 10 10 . . . . . . . . 10 92 . . . 10 40 . 40 15 25 52 . 113 Average Entertainment 40 | . 11 11 16 10 5 . 3 1 18 11 . 5 22 41 24 9 13 6 46 78 72 72 66 44 64 Good Acts 121 | . . . 2 1 3 . 7 2 12 4 . . 4 9 3 1 4 . . 1 5 5 2 5 51 Bad Acts 114 | . . . 6 3 3 . 4 2 9 2 . 6 10 1 3 3 7 . 2 3 6 15 9 1 19 Intel | -11 -10 -9 -8 -7 -7 -7 -6 -6 -6 -6 -6 -5 -5 -5 -5 -5 -5 -4 -4 -4 -4 -3 -2 -1 -1 ------- Run | Yrd Mat Mat Mat Fac Low Zio Pro Fac Low Low Dat Pro Fac Ext Cet Arc Hub Fac Was Fac Arm Res Res Acc Com Active Infowar (turns) 22403 | . 1226 1029 931 325 433 1470 1105 295 754 483 101 783 770 904 355 464 476 145 606 1134 804 1254 1041 517 4998 Optics 8609 | . 1037 1029 108 . . . . . . . . . . . . . . . . . . . 922 517 4996 Sensors 6916 | . . . 458 325 433 1470 1105 294 751 477 101 734 768 . . . . . . . . . . . . Terrain 7095 | . . . . 239 . . . 292 754 481 101 783 740 904 355 464 373 145 606 765 . 44 . 49 . Seismic 1686 | . 189 1024 473 . . . . . . . . . . . . . . . . . . . . . . Cloaking 60 | . . . . . . . . . . . . . . . . . . . . . 60 . . . . Jamming 7008 | . . . . . . . . . . . . . . 279 . . 308 145 606 1134 804 1254 1041 517 920 Robot Analysis Total 1 | . . . 1 . . . . . . . . . . . . . . . . . . . . . . Derelict Logs Recovered 7 | . . . . . 1 2 1 . . 1 . 2 . . . . . . . . . . . . . Drone Launches . | . . . . . . . . . . . . . . . . . . . . . . . . . . Drone Recoveries . | . . . . . . . . . . . . . . . . . . . . . . . . . . Zionite Intel Received 7 | . . . . . . . . 2 . . . . . . . . . . . . . 1 . . 4 Main Access 1 | . . . . . . . . . . . . . . . . . . . . . . 1 . . . Guard Positions 1 | . . . . . . . . . . . . . . . . . . . . . . . . . 1 Component Stockpiles 1 | . . . . . . . . 1 . . . . . . . . . . . . . . . . . Prototype Stockpiles 1 | . . . . . . . . . . . . . . . . . . . . . . . . . 1 Unaware Analyses 2 | . . . . . . . . 1 . . . . . . . . . . . . . . . . 1 Active Terminals 1 | . . . . . . . . . . . . . . . . . . . . . . . . . 1 Exploration | -11 -10 -9 -8 -7 -7 -7 -6 -6 -6 -6 -6 -5 -5 -5 -5 -5 -5 -4 -4 -4 -4 -3 -2 -1 -1 ------------- Run | Yrd Mat Mat Mat Fac Low Zio Pro Fac Low Low Dat Pro Fac Ext Cet Arc Hub Fac Was Fac Arm Res Res Acc Com Turns Passed 23601 | . 1374 1058 932 325 433 1470 1139 452 822 552 101 818 832 1183 355 464 476 145 606 1134 1026 1265 1041 517 5081 Spaces Moved 14510 | 1 866 557 542 246 317 1139 778 265 482 396 85 554 520 718 338 181 455 96 494 655 476 634 594 335 2786 Core 253 | . . . . . . . . . . . . . 71 146 . . . . . . . . . . 36 Treads 86 | . . . . . . . . . . . . . . . . . . . . . 4 . . . 82 Legs 13086 | 1 866 557 542 246 317 1139 778 265 482 396 85 554 335 501 . . 74 96 494 655 472 634 594 335 2668 Wheels 114 | . . . . . . . . . . . . . 114 . . . . . . . . . . . . Hover 971 | . . . . . . . . . . . . . . 71 338 181 381 . . . . . . . . Flight . | . . . . . . . . . . . . . . . . . . . . . . . . . . Fastest Speed 36 | 120 120 120 120 120 120 120 120 122 120 120 120 120 50 40 40 36 40 112 116 109 108 125 113 105 50 Average Speed 115 | 120 120 152 120 120 120 120 120 122 121 120 120 120 115 100 41 40 52 113 116 122 118 149 120 107 114 Slowest Speed 310 | 120 120 190 120 120 120 120 122 193 260 120 120 190 190 176 100 95 310 116 116 185 250 195 200 196 215 Overloaded Moves . | . . . . . . . . . . . . . . . . . . . . . . . . . . Propulsion Burnouts . | . . . . . . . . . . . . . . . . . . . . . . . . . . Robots Hopped . | . . . . . . . . . . . . . . . . . . . . . . . . . . Potential Cave-ins 13 | . . . . . 3 . . . . . . . 2 7 . . . . . . . . . . 1 Cave-ins Triggered . | . . . . . . . . . . . . . . . . . . . . . . . . . . Exploration Rate (%) 46 | 3 97 61 43 7 45 89 74 10 65 62 71 71 16 66 59 82 19 4 97 20 30 20 22 11 69 Regions Visited 25 Branch Regions 13 Pre-discovered Areas 3 | . . . . . . 1 1 . . . 1 . . . . . . . . . . . . . . Known Exits Taken 18 | . . . 1 1 1 1 1 1 1 1 1 1 1 1 1 1 1 . . 1 1 1 . . . Unknown Exits Taken 5 | 1 1 1 . . . . . . . . . . . . . . . . . . . . 1 1 . Scrap Searched 13 | . . . . . 2 4 4 . . 1 . 2 . . . . . . . . . . . . . Spaces Dug 72 | . . . . 1 4 . . 7 8 2 . 4 4 1 . . 5 1 . 10 7 2 8 2 6 Terrain Destroyed 396 | . 17 19 21 1 15 . . 7 36 6 . 14 14 14 . . 5 1 . 57 45 26 21 18 59 Melee 35 | . . . . 1 3 . . 7 4 1 . 4 3 1 . . 5 1 . 3 2 . . . . Projectile 193 | . 4 5 3 . 12 . . . 6 5 . . 4 13 . . . . . 25 43 26 21 2 24 AOE 168 | . 13 14 18 . . . . . 26 . . 10 7 . . . . . . 29 . . . 16 35 Terrain Rammed . | . . . . . . . . . . . . . . . . . . . . . . . . . . Walls Destroyed . | . . . . . . . . . . . . . . . . . . . . . . . . . . Machines Disabled . | . . . . . . . . . . . . . . . . . . . . . . . . . . Actions | -11 -10 -9 -8 -7 -7 -7 -6 -6 -6 -6 -6 -5 -5 -5 -5 -5 -5 -4 -4 -4 -4 -3 -2 -1 -1 --------- Run | Yrd Mat Mat Mat Fac Low Zio Pro Fac Low Low Dat Pro Fac Ext Cet Arc Hub Fac Was Fac Arm Res Res Acc Com Total 19767 | . 1113 668 741 265 353 1245 974 366 684 442 84 670 738 1087 532 552 670 122 515 858 787 828 783 428 4262 Wait 2885 | . 138 6 115 5 8 69 122 49 144 . . 79 162 148 152 347 144 9 . 44 126 48 43 9 918 Move 14486 | . 865 556 541 245 316 1138 777 264 481 395 84 553 519 717 337 180 454 96 493 654 475 634 593 334 2785 Hop . | . . . . . . . . . . . . . . . . . . . . . . . . . . Pick Up 245 | . 14 10 13 3 3 11 13 3 7 7 . 1 11 8 2 1 7 3 2 16 22 16 14 5 53 Fast Attach 209 | . 8 6 5 . . 6 4 3 4 2 . 4 1 22 7 6 14 2 6 8 23 5 20 13 40 Attach 103 | . 3 2 3 2 . 2 1 2 2 4 . 2 10 5 2 . 4 3 . 4 12 5 5 7 23 Detach 67 | . 3 3 1 . . 2 1 . . 1 . 2 5 4 2 . 6 . . 4 7 3 5 3 15 Swap 236 | . 3 10 8 5 4 3 3 11 8 7 . 6 7 8 2 1 1 2 . 16 13 20 3 13 82 Drop 354 | . 18 18 11 . 5 14 18 8 9 5 . 1 7 18 8 6 17 2 5 19 25 22 25 17 76 Fire 751 | . 46 55 44 . 13 . . . 10 5 . 1 6 24 6 . . 1 . 72 65 72 60 27 244 Melee 232 | . . . . 5 4 . 14 25 16 16 . 21 10 30 14 11 23 4 5 16 18 . . . . Ram . | . . . . . . . . . . . . . . . . . . . . . . . . . . Kick 43 | . 15 2 . . . . . 1 . . . . . . . . . . . 3 1 3 10 . 8 Crush . | . . . . . . . . . . . . . . . . . . . . . . . . . . Escape Stasis 30 | . . . . . . . . . . . . . . 8 . . . . . . . . 5 . 17 Rewire 125 | . . . . . . . 20 . 3 . . . . 95 . . . . 4 2 . . . . 1 Trap 1 | . . . . . . . 1 . . . . . . . . . . . . . . . . . . Miscellaneous . | . . . . . . . . . . . . . . . . . . . . . . . . . . Route ------- -11/Scrapyard -10/Materials (discovered 5 exits: *Mat x3 / [*Min] / [*Sub]) -9/Materials (discovered 2 exits: *Mat x2) -8/Materials (discovered 2 exits: *Fac / Sto) -7/Factory (discovered 2 exits: *Low x2) -7/Lower Caves (discovered 2 exits: [*Low] / *Zio) -7/Zion -6/Proximity Caves -6/Factory (discovered 2 exits: Fac / *Low) -6/Lower Caves -6/Lower Caves (discovered 2 exits: *Fac / *Dat) -6/Data Miner -5/Proximity Caves -5/Factory (discovered 3 exits: Upp x2 / *Ext) -5/Extension (discovered 3 exits: *Fac x2 / *Cet) -5/Cetus (discovered 2 exits: Fac / *Arc) -5/Archives (discovered 3 exits: *Fac / *Hub x2) -5/Hub_04(d) (discovered 2 exits: *Fac x2) -4/Factory -4/Waste -4/Factory -4/Armory (discovered 2 exits: *Res / [*Lab]) -3/Research (discovered 3 exits: *Res x3) -2/Research -1/Access -1/Command (discovered 2 exits: *Sur x2) To Epsilon Eridani History --------- Turn | Location | Event 1 | -11/Scrapyard | Discovered new exit (range 0) 1 | -11/Scrapyard | Entered Materials 128 | -10/Materials | Discovered new exit (range 4) 305 | -10/Materials | Build established: Mutant 324 | -10/Materials | Discovered new exit (range 15) 395 | -10/Materials | Discovered new exit (range 8) 512 | -10/Materials | Discovered new exit (range 18) 836 | -10/Materials | Build established: Scavenger-Mutant 1174 | -10/Materials | Discovered new exit (range 8) 1315 | -10/Materials | Prayed at D.C.S.S. Altar Unit 1375 | -10/Materials | Entered another Materials area 1375 | -9/Materials | Evolved 2 slots: Utility x2 1378 | -9/Materials | Build established: Mutant 1781 | -9/Materials | Central database locked down 2156 | -9/Materials | Discovered new exit (range 9) 2411 | -9/Materials | Discovered new exit (range 14) 2433 | -9/Materials | Entered another Materials area 2433 | -8/Materials | Evolved 2 slots: Propulsion x2 2669 | -8/Materials | X0-1V1 added 0b10 threat records associated with you (considerable) 2800 | -8/Materials | Identified exit to Storage 2882 | -8/Materials | X0-1V1 made a cryptic comment about sterilization and BL-4Z3 2931 | -8/Materials | Discovered new exit (range 5) 2936 | -8/Materials | Identified exit to Factory 2989 | -8/Materials | Sterilization system engaged 2989 | -8/Materials | Non-combat units ordered to evacuate 3089 | -8/Materials | Combat units ordered to evacuate 3101 | -8/Materials | Destroyed 9 combat bots 3213 | -8/Materials | X0-1V1 sent hostile B-36 Bruiser (x2) 3289 | -8/Materials | Ambient heat levels rising (+10) 3365 | -8/Materials | Entered Factory 3365 | -7/Factory | Evolved 2 slots: Utility x2 3387 | -7/Factory | X0-1V1 redirected Transport squads to designated parking area 3502 | -7/Factory | Identified exit to Lower Caves 3659 | -7/Factory | Sight range permanently improved by X0-1V1 (+1; -150 max core) 3690 | -7/Factory | Entered Lower Caves 3711 | -7/Lower Caves | Core integrity permanently improved by X0-1V1 (+250) 3937 | -7/Lower Caves | System corruption reached 10% 3955 | -7/Lower Caves | Learned Factory emergency access door positions 4100 | -7/Lower Caves | Discovered new exit (range 7) 4113 | -7/Lower Caves | A Derelict revealed a hidden shortcut to a safe place 4120 | -7/Lower Caves | Identified exit to Zion 4123 | -7/Lower Caves | Entered Zion 4277 | -7/Zion | Discovered new exit (range 12) 4441 | -7/Zion | Learned Factory emergency access door positions 4691 | -7/Zion | Found CR-A16's Pointy Stick 4702 | -7/Zion | Learned 12 Factory zone layouts 4741 | -7/Zion | Found Prototype Launcher 4741 | -7/Zion | Identified Gui. Missile Launcher 4841 | -7/Zion | Learned Factory non-interactive machine intel 4849 | -7/Zion | Gained Derelict followers 5179 | -7/Zion | Visited the Megawrench Repair Shop 5179 | -7/Zion | Megawrench repaired 10 parts 5262 | -7/Zion | Met Imprinter 5281 | -7/Zion | Imprinted 5284 | -7/Zion | Declared Zion's savior 5522 | -7/Zion | Identified exit to Proximity Caves 5593 | -7/Zion | Entered Proximity Caves 5593 | -6/Proximity Caves | Accompanied by 6 allies 5597 | -6/Proximity Caves | Learned location of Extension (-5) 5609 | -6/Proximity Caves | Energy capacity permanently improved by X0-1V1 (+500; -250 max core) 5655 | -6/Proximity Caves | Attracted the attention of an 0b10 outpost 5907 | -6/Proximity Caves | Identified exit to Factory 5907 | -6/Proximity Caves | X0-1V1 revealed exit location to -6/Factory 5989 | -6/Proximity Caves | X0-1V1 vaporized surrounding terrain (radius 17) 6679 | -6/Proximity Caves | Attracted the attention of an 0b10 checkpoint 6715 | -6/Proximity Caves | Lost 3 allies 6732 | -6/Proximity Caves | Entered Factory 6732 | -6/Factory | Evolved 2 slots: Utility x2 6733 | -6/Factory | Identified exit to Factory 6735 | -6/Factory | Loaded intel: 220 non-interactive machine locations 6871 | -6/Factory | Retrieved Zion intel report: Component Stockpiles 6997 | -6/Factory | Build established: Derelict-Gladiator 7028 | -6/Factory | Retrieved Zion intel report: Unaware Analyses 7029 | -6/Factory | Zion Offense Resupply teleported in 7111 | -6/Factory | Discovered new exit (range 9) 7120 | -6/Factory | Identified exit to Lower Caves 7168 | -6/Factory | Zion Demo squad teleported in 7184 | -6/Factory | Entered Lower Caves 7184 | -6/Lower Caves | Accompanied by 1 ally 7184 | -6/Lower Caves | Sensors blinded by X0-1V1 7199 | -6/Lower Caves | System corruption reached 10% 7199 | -6/Lower Caves | X0-1V1 vaporized surrounding terrain (radius 19) 7217 | -6/Lower Caves | Identified exit to Lower Caves 7217 | -6/Lower Caves | X0-1V1 revealed exit location to -6/Lower Caves 7226 | -6/Lower Caves | X0-1V1 sent hostile X-57 Shotgunner (x2) 7276 | -6/Lower Caves | Forcibly received Sfc. Transmogifier from X0-1V1 7302 | -6/Lower Caves | Found Lgt. Regenerative Plating 7308 | -6/Lower Caves | Attracted the attention of an 0b10 outpost 7373 | -6/Lower Caves | Destroyed 9 combat bots 7464 | -6/Lower Caves | Arm. Leg reconfigured into Item Mimic 7555 | -6/Lower Caves | Sensors blinded by X0-1V1 7777 | -6/Lower Caves | Build established: Scavenger-Gladiator 7860 | -6/Lower Caves | Encountered a Warlord checkpoint 8006 | -6/Lower Caves | Entered another Lower Caves area 8021 | -6/Lower Caves | Discovered exit to Factory (range 15) 8024 | -6/Lower Caves | Found Alien Artifact 8024 | -6/Lower Caves | Identified Core Expander 8024 | -6/Lower Caves | Installed Core Expander, added new Propulsion slot 8126 | -6/Lower Caves | Build established: Scavenger-Assassin 8149 | -6/Lower Caves | Learned Factory interactive machine intel 8247 | -6/Lower Caves | X0-1V1 sent you into danger 8411 | -6/Lower Caves | Arm. Leg reconfigured into Item Mimic 8480 | -6/Lower Caves | Discovered new exit (range 19) 8530 | -6/Lower Caves | Identified exit to Data Miner 8554 | -6/Lower Caves | Build established: Scavenger-Gladiator 8558 | -6/Lower Caves | Entered Data Miner 8558 | -6/Data Miner | Discovered new exit (range 6) 8580 | -6/Data Miner | Met Data Miner 8610 | -6/Data Miner | Learned location of Section 7 (-2) 8610 | -6/Data Miner | Acquired the access code to Warlord's prototype stash 8626 | -6/Data Miner | Received God Mode back door access code from Data Miner 8658 | -6/Data Miner | Identified exit to Proximity Caves 8659 | -6/Data Miner | Entered Proximity Caves 8743 | -5/Proximity Caves | Learned location of 1 exit from Factory 9018 | -5/Proximity Caves | X0-1V1 sent hostile P-70 Sage (x3) 9079 | -5/Proximity Caves | Lost 3 parts (1p2n) 9194 | -5/Proximity Caves | Attracted the attention of an 0b10 checkpoint 9477 | -5/Proximity Caves | Entered Factory 9477 | -5/Factory | Evolved 2 slots: Utility x1, Weapon x1 9478 | -5/Factory | Identified exit to Upper Caves 9480 | -5/Factory | Loaded intel: 55 interactive machine locations 9545 | -5/Factory | X0-1V1 enhanced Transport squad support 9577 | -5/Factory | Repaired Microactuators 9672 | -5/Factory | X0-1V1 caused items to flee you 9808 | -5/Factory | Zion Infowar Resupply teleported in 9888 | -5/Factory | Items stopped fleeing you 10039 | -5/Factory | Matter Neutralizer reconfigured into Item Mimic 10081 | -5/Factory | Discovered new exit (range 9) 10091 | -5/Factory | Identified exit to Extension 10200 | -5/Factory | X0-1V1 added 0b10 threat records associated with you (major) 10251 | -5/Factory | X0-1V1 upgraded hostiles (x1) 10263 | -5/Factory | Cargo convoy interrupted 10276 | -5/Factory | System corruption reached 10% 10280 | -5/Factory | Core integrity fell below 50% 10291 | -5/Factory | X0-1V1 activates XOMVISION 10303 | -5/Factory | X0-1V1 revealed exit location to -5/Upper Caves 10307 | -5/Factory | Lost 13 parts (1p4n5u3w) 10309 | -5/Factory | Entered Extension 10347 | -5/Extension | Incoming investigation squad redirected 10357 | -5/Extension | Rescued a captive Derelict 10358 | -5/Extension | Rescued a captive Derelict 10396 | -5/Extension | Rescued a captive Derelict 10397 | -5/Extension | Rescued a captive Derelict 10455 | -5/Extension | Lost 3 allies 10486 | -5/Extension | X0-1V1 foreshadows a heat wave 10611 | -5/Extension | Ambient heat levels rising (+10) 10762 | -5/Extension | Build established: Scavenger-Mutant 10776 | -5/Extension | Ambient heat levels rising (+10) 10809 | -5/Extension | Disrupted transfer network 10911 | -5/Extension | X0-1V1 activates XOMVISION 10914 | -5/Extension | Ambient heat levels falling (-10) 11019 | -5/Extension | Lost 3 allies 11027 | -5/Extension | Ambient heat levels falling (-10) 11085 | -5/Extension | Rescued a captive Derelict 11086 | -5/Extension | Rescued a captive Derelict 11134 | -5/Extension | Zion Light squad teleported in 11148 | -5/Extension | Rescued A7 11226 | -5/Extension | Zion Infowar Resupply teleported in 11319 | -5/Extension | Zion Hover Resupply teleported in 11363 | -5/Extension | Core integrity restored by X0-1V1 (+212) 11374 | -5/Extension | Discovered new exit (range 16) 11383 | -5/Extension | Discovered new exit (range 6) 11394 | -5/Extension | Identified exit to Cetus 11409 | -5/Extension | Identified exit to Factory 11409 | -5/Extension | X0-1V1 revealed exit location to -4/Factory 11443 | -5/Extension | Core integrity restored by X0-1V1 (+212) 11492 | -5/Extension | Entered Cetus 11492 | -5/Cetus | Accompanied by 9 allies (A7) 11497 | -5/Cetus | Acquired a Cetus Manufacturing Module code from A7 11507 | -5/Cetus | Spotted Cetus Guard 11519 | -5/Cetus | Spotted Cetus Guard 11519 | -5/Cetus | Destroyed Cetus Guard 11520 | -5/Cetus | Spotted Cetus Guard 11529 | -5/Cetus | Allies destroyed Cetus Guard 11534 | -5/Cetus | Allies destroyed Cetus Guard 11536 | -5/Cetus | Found Prototype Protection 11536 | -5/Cetus | Identified Zio. Weapon Casing 11542 | -5/Cetus | X0-1V1 revealed exit location to -4/Factory 11590 | -5/Cetus | Started Cetus Manufacturing Module 11615 | -5/Cetus | Manufactured an Enhanced Grunt 11623 | -5/Cetus | X0-1V1 activates XOMVISION 11624 | -5/Cetus | Discovered new exit (range 17) 11630 | -5/Cetus | Identified exit to Archives 11640 | -5/Cetus | Manufactured an Enhanced Grunt 11645 | -5/Cetus | X0-1V1 vaporized surrounding terrain (radius 23) 11665 | -5/Cetus | Manufactured an Enhanced Grunt 11690 | -5/Cetus | Manufactured an Enhanced Grunt 11694 | -5/Cetus | Murdered A7 11697 | -5/Cetus | Extracted ID and sensor layout for unrecognized location from A7's data core 11715 | -5/Cetus | Manufactured an Enhanced Grunt 11847 | -5/Cetus | Entered Archives 11847 | -5/Archives | Accompanied by 11 allies 11910 | -5/Archives | Lost 3 allies 11911 | -5/Archives | Discovered exit to Factory (range 17) 11935 | -5/Archives | Discovered new exit (range 17) 12037 | -5/Archives | Discovered new exit (range 16) 12211 | -5/Archives | Build established: Commander-Mutant 12262 | -5/Archives | Identified exit to Hub_04(d) 12311 | -5/Archives | Entered Hub_04(d) 12311 | -5/Hub_04(d) | Accompanied by 8 allies 12318 | -5/Hub_04(d) | Found Imp. Powered Armor 12320 | -5/Hub_04(d) | Found Imp. Powered Armor 12322 | -5/Hub_04(d) | Found Imp. Powered Armor 12324 | -5/Hub_04(d) | Found Imp. Powered Armor 12326 | -5/Hub_04(d) | Found Imp. Powered Armor 12337 | -5/Hub_04(d) | Zion Defense Resupply teleported in 12374 | -5/Hub_04(d) | Discovered exit to Factory (range 17) 12380 | -5/Hub_04(d) | X0-1V1 destroyed Network Hub 12380 | -5/Hub_04(d) | Network Hub disabled 12417 | -5/Hub_04(d) | Spotted Lightning 12427 | -5/Hub_04(d) | Spotted Lightning 12460 | -5/Hub_04(d) | Lost 8 allies 12471 | -5/Hub_04(d) | X0-1V1 redirected Transport squads to designated parking area 12491 | -5/Hub_04(d) | X0-1V1 added 0b10 threat records associated with you (minor) 12502 | -5/Hub_04(d) | Found Prototype Device 12502 | -5/Hub_04(d) | Identified Exp. Thermal Shield 12564 | -5/Hub_04(d) | X0-1V1 vaporized surrounding terrain (radius 16) 12573 | -5/Hub_04(d) | Zion Heavy squad teleported in 12579 | -5/Hub_04(d) | X0-1V1 revealed exit location to -4/Factory 12635 | -5/Hub_04(d) | X0-1V1 enhanced Transport squad support 12749 | -5/Hub_04(d) | Spotted Lightning 12776 | -5/Hub_04(d) | Spotted Lightning 12781 | -5/Hub_04(d) | Spotted Lightning 12787 | -5/Hub_04(d) | Entered Factory 12787 | -4/Factory | Evolved 2 slots: Power x1, Utility x1 12803 | -4/Factory | Zion Heavy squad teleported in 12932 | -4/Factory | Discovered new exit (range 10) 12932 | -4/Factory | Sucked down chute 12932 | -4/Factory | Entered Waste 12932 | -4/Waste | The area was eerily silent 12977 | -4/Waste | 2 allies followed down the chute 13084 | -4/Waste | Build established: Messiah-Mutant 13234 | -4/Waste | Discovered new exit (range 13) 13270 | -4/Waste | Identified exit to Factory 13538 | -4/Waste | Entered Factory 13538 | -4/Factory | Accompanied by 2 allies 13713 | -4/Factory | Zion hero teleported in (ME-RLN) 13749 | -4/Factory | X0-1V1 enhanced Transport squad support 13772 | -4/Factory | ME-RLN assimilated hostile Y-64 Sentinel 13817 | -4/Factory | ME-RLN assimilated hostile G-73 Enforcer 13819 | -4/Factory | ME-RLN assimilated hostile G-67 Veteran 13913 | -4/Factory | Build established: Scavenger-Mutant 13944 | -4/Factory | ME-RLN assimilated hostile L-61 Swordsman 14253 | -4/Factory | Central database locked down 14540 | -4/Factory | Zion Light squad teleported in 14629 | -4/Factory | Zion Fire squad teleported in 14654 | -4/Factory | Discovered new exit (range 11) 14671 | -4/Factory | Identified exit to Armory 14672 | -4/Factory | Entered Armory 14672 | -4/Armory | Accompanied by 4 allies 14757 | -4/Armory | X0-1V1 sent you to a vault 14793 | -4/Armory | Lost 3 allies 15048 | -4/Armory | Lost 3 parts (3u) 15056 | -4/Armory | System corruption reached 10% 15090 | -4/Armory | Spotted B-86 Titan 15104 | -4/Armory | Zion Fire squad teleported in 15178 | -4/Armory | Lost 4 allies 15203 | -4/Armory | Identified exit to Research 15203 | -4/Armory | X0-1V1 revealed exit location to -3/Research 15300 | -4/Armory | Lost 8 parts (1p2n4u1w) 15414 | -4/Armory | X0-1V1 caused items to flee you 15460 | -4/Armory | Zion Hacker squad teleported in 15568 | -4/Armory | Items stopped fleeing you 15594 | -4/Armory | Discovered new exit (range 6) 15698 | -4/Armory | Entered Research 15698 | -3/Research | Accompanied by 1 ally 15698 | -3/Research | Evolved 2 slots: Weapon x2 15783 | -3/Research | X0-1V1 vaporized surrounding terrain (radius 23) 15866 | -3/Research | X0-1V1 caused items to flee you 15876 | -3/Research | Retrieved Zion intel report: Main Access 15876 | -3/Research | Identified exit to Research 15886 | -3/Research | Build established: Scavenger-Tank 15891 | -3/Research | Allied Derelicts emerged from ambush trap array 15960 | -3/Research | X0-1V1 sent someone to keep an eye on you 16020 | -3/Research | X0-1V1 redirected Transport squads to designated parking area 16119 | -3/Research | Items stopped fleeing you 16128 | -3/Research | X0-1V1 added 0b10 threat records associated with you (major) 16175 | -3/Research | X0-1V1 mutated your Utility slot to Power slot 16198 | -3/Research | Search patrols dispatched 16389 | -3/Research | X0-1V1 upgraded hostiles (x2) 16420 | -3/Research | Lost 3 allies 16476 | -3/Research | X0-1V1 upgraded hostiles (x1) 16596 | -3/Research | X0-1V1 added 0b10 threat records associated with you (major) 16646 | -3/Research | Spotted B-86 Titan 16654 | -3/Research | X0-1V1 sent allied Savage (x4) 16656 | -3/Research | Destroyed B-86 Titan 16698 | -3/Research | Search patrols dispatched 16948 | -3/Research | First assault squad dispatched 16963 | -3/Research | Entered another Research area 16963 | -2/Research | Evolved 2 slots: Propulsion x1, Utility x1 17002 | -2/Research | Zion Zionite Resupply teleported in 17071 | -2/Research | Zion Infowar Resupply teleported in 17082 | -2/Research | Found Prototype Processor 17082 | -2/Research | Identified Spectral Analyzer 17116 | -2/Research | Zion Light squad teleported in 17144 | -2/Research | Spotted B-90 Cyclops 17155 | -2/Research | Allies destroyed B-90 Cyclops 17321 | -2/Research | Build established: Messiah-Tank 17395 | -2/Research | Zion Zionite Resupply teleported in 17399 | -2/Research | Found Prototype Protection 17399 | -2/Research | Identified Zio. Heavy Carapace 17463 | -2/Research | First assault squad dispatched 17536 | -2/Research | X0-1V1 redirected Transport squads to designated parking area 17623 | -2/Research | Destroyed 7 combat bots 17734 | -2/Research | X0-1V1 added 0b10 threat records associated with you (major) 17755 | -2/Research | Zion Fire squad teleported in 17826 | -2/Research | Found Prototype Launcher 17826 | -2/Research | Identified Point Singularity Launcher 17863 | -2/Research | System corruption reached 10% 17936 | -2/Research | Discovered new exit (range 16) 17963 | -2/Research | X0-1V1 added 0b10 threat records associated with you (major) 17988 | -2/Research | Incoming assault squad redirected 18004 | -2/Research | Entered Access 18004 | -1/Access | Accompanied by 3 allies 18004 | -1/Access | Evolved 2 slots: Utility x2 18086 | -1/Access | Lost 3 allies 18132 | -1/Access | Destroyed 12 combat bots 18146 | -1/Access | X0-1V1 sent you to a vault 18164 | -1/Access | Found Prototype Slashing Weapon 18164 | -1/Access | Identified Hvy. Scimitar of Distortion 18182 | -1/Access | Found Prototype Reactor 18182 | -1/Access | Identified Vortex Chain Reactor 18372 | -1/Access | Spotted B-99 Colossus 18406 | -1/Access | Zion Heavy squad teleported in 18468 | -1/Access | Discovered new exit (range 7) 18490 | -1/Access | X0-1V1 activates XOMVISION 18504 | -1/Access | First assault squad dispatched 18521 | -1/Access | Entered Command 18521 | -1/Command | Accompanied by 2 allies 18561 | -1/Command | Retrieved Zion intel report: Active Terminals 18614 | -1/Command | Retrieved Zion intel report: Unaware Analyses 18656 | -1/Command | Retrieved Zion intel report: Prototype Stockpiles 18764 | -1/Command | X0-1V1 sent you to a vault 18771 | -1/Command | First assault squad dispatched 18800 | -1/Command | Incoming assault squad redirected 18800 | -1/Command | X0-1V1 blocked Data Miner access to 0b10 dispatch routers 18929 | -1/Command | Found Gamma Bomb Array 19017 | -1/Command | Disengaged cave seal 19017 | -1/Command | Zionites emerged from the dark tunnel 19031 | -1/Command | Retrieved Zion intel report: Guard Positions 19175 | -1/Command | Lost 4 allies 19244 | -1/Command | Spotted B-99 Colossus 19249 | -1/Command | High security lockdown imminent 19274 | -1/Command | Disengaged cave seal 19274 | -1/Command | Zionites emerged from the dark tunnel 19329 | -1/Command | High security lockdown engaged 19369 | -1/Command | Spotted Executioner 19369 | -1/Command | Spotted Executioner 19369 | -1/Command | Spotted Executioner 19369 | -1/Command | Spotted Executioner 19369 | -1/Command | Spotted Striker 19369 | -1/Command | Spotted Striker 19369 | -1/Command | Spotted Alpha 7 19369 | -1/Command | Spotted Alpha 7 19373 | -1/Command | Spotted B-99 Colossus 19373 | -1/Command | Spotted B-99 Colossus 19374 | -1/Command | Allies destroyed Striker 19379 | -1/Command | Allies destroyed Executioner 19380 | -1/Command | Allies destroyed Executioner 19387 | -1/Command | Allies destroyed Alpha 7 19389 | -1/Command | Destroyed Executioner 19392 | -1/Command | Destroyed Alpha 7 19396 | -1/Command | Destroyed B-99 Colossus 19407 | -1/Command | Destroyed B-99 Colossus 19425 | -1/Command | Lost 7 parts (1p4u2w) 19437 | -1/Command | Lost 16 allies 19449 | -1/Command | Discovered new exit (range 13) 19450 | -1/Command | Found Prototype Processor 19450 | -1/Command | Identified Exp. Core Analyzer 19466 | -1/Command | Found Prototype Ballistic Gun 19471 | -1/Command | System corruption reached 10% 19531 | -1/Command | Lost 9 allies 19564 | -1/Command | X0-1V1 downgraded hostiles (x4) 19565 | -1/Command | Scanned by Researcher 19568 | -1/Command | Spotted Investigator 19568 | -1/Command | Destroyed Investigator 19599 | -1/Command | Found Prototype Protection 19600 | -1/Command | Identified Zio. Shade Carapace 19722 | -1/Command | Identified exit to Access_0 19722 | -1/Command | X0-1V1 revealed exit location to -1/Access_0 19785 | -1/Command | Found Exp. Focal Shield 19786 | -1/Command | Spotted Striker 19809 | -1/Command | Destroyed Striker 19941 | -1/Command | Spotted Executioner 19941 | -1/Command | Spotted Striker 19949 | -1/Command | Destroyed Striker 19957 | -1/Command | Destroyed Executioner 20079 | -1/Command | Spotted Executioner 20081 | -1/Command | Spotted Striker 20095 | -1/Command | Destroyed Striker 20103 | -1/Command | Destroyed Executioner 20125 | -1/Command | Identified Multirail 20151 | -1/Command | Build established: Scavenger-Tank 20221 | -1/Command | Spotted Striker 20222 | -1/Command | Spotted Striker 20223 | -1/Command | Spotted Striker 20224 | -1/Command | Spotted Striker 20231 | -1/Command | Destroyed Striker 20231 | -1/Command | Destroyed Striker 20233 | -1/Command | Destroyed Striker 20236 | -1/Command | Destroyed Striker 20270 | -1/Command | Destroyed 18 combat bots 20329 | -1/Command | Destroyed Executioner 20330 | -1/Command | Destroyed Striker 20359 | -1/Command | Destroyed 15 combat bots 20487 | -1/Command | Spotted Investigator 20490 | -1/Command | Destroyed Executioner 20491 | -1/Command | Destroyed Investigator 20519 | -1/Command | Destroyed 7 combat bots 20561 | -1/Command | Identified exit to Surface 20561 | -1/Command | X0-1V1 revealed exit location to -0/Surface 20592 | -1/Command | X0-1V1 activates XOMVISION 20626 | -1/Command | Found Zio. Weapon Casing 20639 | -1/Command | Spotted Executioner 20674 | -1/Command | Spotted Executioner 20674 | -1/Command | Spotted Striker 20688 | -1/Command | Destroyed Executioner 20688 | -1/Command | Destroyed Executioner 20689 | -1/Command | Destroyed Striker 20716 | -1/Command | Found Zio. Weapon Casing 20767 | -1/Command | Spotted Executioner 20772 | -1/Command | Destroyed Executioner 20772 | -1/Command | Spotted Executioner 20788 | -1/Command | Destroyed Executioner 20810 | -1/Command | Destroyed 9 combat bots 21012 | -1/Command | X0-1V1 sent allied Cetus Guard (x3) 21150 | -1/Command | X0-1V1 activates XOMVISION 21442 | -1/Command | Allies destroyed Cetus Guard 21537 | -1/Command | X0-1V1 caused items to flee you 21729 | -1/Command | X0-1V1 activates XOMVISION 21742 | -1/Command | Items stopped fleeing you 22627 | -1/Command | X0-1V1 activates XOMVISION 22906 | -1/Command | Spotted M Guard 22906 | -1/Command | Spotted Combat Programmer 22906 | -1/Command | Spotted Combat Programmer 22907 | -1/Command | Spotted M Guard 22918 | -1/Command | Destroyed Combat Programmer 22923 | -1/Command | Destroyed Combat Programmer 22943 | -1/Command | Destroyed M Guard 22946 | -1/Command | All MAIN.C guards destroyed 23027 | -1/Command | Found Corrupted Prototype Reactor 23070 | -1/Command | Door terminal overloaded 23120 | -1/Command | Met MAIN.C 23138 | -1/Command | 0b10 Conduit disabled 23161 | -1/Command | Found Exp. Focal Shield 23195 | -1/Command | Destroyed MAIN.C Shell 23198 | -1/Command | MAIN.C activated Command garrisons 23198 | -1/Command | Surrendered to MAIN.C 23198 | -1/Command | Loaded intel: 67 machine locations 23198 | -1/Command | Loaded intel: 49 trap records 23198 | -1/Command | Discovered exit to Surface (range 62) 23198 | -1/Command | Discovered exit to Surface (range 79) 23225 | -1/Command | Found Prototype Protection 23225 | -1/Command | Identified Centrium Heavy Armor Plating 23229 | -1/Command | Lost 3 parts (1p2u) 23229 | -1/Command | Found Prototype Reactor 23229 | -1/Command | Identified Singularity Reactor 23363 | -1/Command | Found Prototype Reactor 23365 | -1/Command | Found Prototype Reactor 23368 | -1/Command | Found Prototype Device 23368 | -1/Command | Identified Adv. Particle Accelerator 23371 | -1/Command | Found Prototype Device 23371 | -1/Command | Identified Exp. Weapon Cycler 23375 | -1/Command | Found Prototype Device 23375 | -1/Command | Identified Exp. System Purifier 23378 | -1/Command | Found Prototype Device 23379 | -1/Command | Identified Exp. EM Shield 23384 | -1/Command | Found Prototype Device 23384 | -1/Command | Identified Exp. Force Field 23400 | -1/Command | MAIN.C activated Command garrisons 23400 | -1/Command | Found Spectral Analyzer 23405 | -1/Command | X0-1V1 activates XOMVISION 23407 | -1/Command | Found Prototype Device 23408 | -1/Command | Identified AEGIS Remote Shield 23411 | -1/Command | System corruption reached 30% 23436 | -1/Command | Unknown forces attacked Command 23436 | -1/Command | Spotted EQ-002 23439 | -1/Command | X0-1V1 whisked you away to safety 23496 | -1/Command | Spotted EQ-000 23505 | -1/Command | Found Thermal Barrier 23506 | -1/Command | X0-1V1 sent allied Y-72 Warden (x3) 23507 | -1/Command | Destroyed EQ-002 23509 | -1/Command | Spotted EQ-007 23513 | -1/Command | Phase Generator disabled 23522 | -1/Command | Destroyed EQ-007 23525 | -1/Command | Spotted EQ-012 23526 | -1/Command | Spotted EQ-009 23534 | -1/Command | Destroyed EQ-000 23535 | -1/Command | Spotted EQ-019 23535 | -1/Command | Spotted EQ-018 23535 | -1/Command | Spotted EQ-036 23538 | -1/Command | Spotted EQ-016 23539 | -1/Command | Spotted B-99 Colossus 23544 | -1/Command | Destroyed EQ-012 23554 | -1/Command | Spotted EQ-001 23563 | -1/Command | Spotted EQ-026 23566 | -1/Command | Destroyed EQ-009 23571 | -1/Command | Core integrity fell below 50% 23580 | -1/Command | Lost 6 allies 23582 | -1/Command | Spotted EQ-030 23602 | *** | Escaped! Last Messages --------------- 23582_ EQ-016 suffers critical hit (Destroy). 23582_ B-99 Colossus Imp. Utility Shielding blasted off. 23583_ Acquired 2 matter. 23583_ Slug penetrates Wall. 23586_ Acquired 131 matter. 23587_ Acquired 43 matter. 23588_ Acquired 44 matter. 23589_ System corrupted: Heat flow error (+255). 23589_ Acquired 22 matter. 23590_ Extracted 10 matter. 23595_ Acquired Unknown Treads. 23595_ Identified Imp. Heavy Siege Treads. 23596_ Slug penetrates Wall. 23597_ Penetrated by Slug. X0-1V1's Piety Tracker suddenly appears amidst shimmering waves of color. 23599_ Slug penetrates Wall. 23600_ Penetrated by Slug. 23601_ Slug penetrates Wall. Map ----- +----------------------------------------------------+ | ??????????# #?????#%!!!=%=%![[[= =!!% | | ?########## #????## %!!![[[[!]* !!!%= | | ?# + #???##" !!%!!*%=]! %%!!=!%!= %= | | ?# # #???# " !=[][[!!%""#""" ###" ###### | | ?# "" # ####""" "* #%% ##=#?#"T#??#?# | | ## """ # % % + # ##!#?####??#?# | | + "T + %! # # ## #???????#?# | | ## """ " % # + ##=#######?#?? | | ## " # #####""###### # ## # #?### | | + # #???###?????# # ## # #???? | | ## !# #???????????# !! #######"#*# #???? | | ?########## #???????????# ! #??????##!# #???? | | ??????????# #???????????# #??????## # #???? | | ????????### ##########??######??????# # #???? | | ######### ! # #??????????????# + #???? | | # #??????????????# # #???? | | + #?????########## # #???? | | # ! #?????#! # #???? | | ######### = # #?????# n # #???? | | ????????####### ! #?????# n # #???? | | ??????????????########?????# n ! ###+###???? | | ???????????????????????????## n!=! # #???? | | ???????????????????????###### !!! # #???? | | ???????????????????????# # #???? | | ???????????????????????# + #???? | | ???????????????????????# @ ########## # #???? | | ???????????????????????# ## # # #???? | | ???????????????????????###### * # # #???? | | #######?????????????????????# + # ! #???? | | #?????????????????????# # # #???? | | #?????????????????????# # # #???? | | " #?????????????????????# # # #???? | | "" #?????????????????????# # # #???? | | "" #?????????????????????# + ##+####???? | | " !#?????????????????????# #^^^^^#??????? | | #?????????????????????# # #??????? | | #?????????????????????# # #??????? | | = #?????????????????????# # #??????? | | #######?????????????????????# # #??????? | | ????????????????????????????# # #??????? | | ????????????????????????????######+##+#####??????? | | ????????????????????????????????# #??????? | | ????????????????????????????????# #??????? | | ????????????????????????????????# = " "" #??????? | | ????????????????????????????????# "R"" #??????? | | ????????????????????????????????# """ [#??????? | | ????????????????????????????????# #??????? | | ????????????????????????????????# #??????? | | ????????????????????????????????###########??????? | | ?????????????????????????????????????????????????? | +----------------------------------------------------+ Best States ------------- Heat Dissipation 235 Energy Generation 79 Energy Capacity 2700 Matter Stores 1000 Matter Capacity 1000 Sight Range 28 Robot Scan Range 15 Terrain Scan Range 20 Terrain Scan Density 335 Jamming Range 16 Cloak Strength 4 Additional Mass Support 20 Armor Coverage 1200 Resistance: KI 30 Resistance: TH 50 Resistance: EX 20 Resistance: EM 75 Resistance: I 20 Resistance: S 20 Resistance: P 20 Weapon Cycling 30 Melee Speed Boost 20 Phase Shifting 15 Evasion (%) 84 Targeting Accuracy 16 Melee Accuracy 6 Core Analysis 8 Recoil Reduction 5 Particle Charging 50 Offensive Hacking 32 Defensive Hacking 10 Item Schematics ----------------- Combat Drone Bay | -6/Data Miner | Free Lgt. Regenerative Plating | -6/Data Miner | Free Exp. Cesium-ion Thruster | -6/Data Miner | Free Imp. Matter Compressor | -6/Data Miner | Free Smartbomb Launcher | -6/Data Miner | Free Hvy. Siege Treads | -6/Data Miner | Free Imp. Point Defense System | -6/Data Miner | Free Dispersion Rifle | -6/Data Miner | Free Imp. Remote Datajack | -6/Data Miner | Free Imp. Force Field | -6/Data Miner | Free Adv. Hardlight Generator | -6/Data Miner | Free Q-thruster | -6/Data Miner | Free Com. HERF Cannon | -6/Data Miner | Free Imp. Powered Armor | -4/Factory | Scanalyzed Robot Schematics ------------------ E-15 Imp | -6/Data Miner | Free X-67 Chaingunner | -6/Data Miner | Free R-10 Processor | -6/Data Miner | Free B-48 Gladiator | -6/Data Miner | Free Fabricated ------------ Nothing Repaired ---------- Microactuators | 10% | -5/Factory Studied --------- Imp. Light Cannon | -9/Materials | Hacked Myomer Leg | -4/Factory | Hacked Centrium Leg | -2/Research | Hacked Quantum Rifle | -2/Research | Hacked Enh. Quantum Rifle | -2/Research | Hacked Alien Tech Used ----------------- Core Expander Achievements -------------- Just Shoot The Terminal Challenges ------------ None Game ------ Seed DefenseParticleMediator Manual? 0 Play Time 04:33:30 Cumulative 487.9 hours Start 2026.08.31 @ 16:19:06 End 2026.08.31 @ 23:31:54 Sessions 3 Manual Loads 0 Difficulty Rogue Special Mode None Game No. 177 Rogue 177 Adventurer 0 Explorer 0 Win Type 0 Total 19 Types 5/0/8/0/1/0/2/1/1/1 Lore% 82 Gallery% 84 Achievement% 76 Wizard Run 0 Options --------- Layout 1 ASCII 0 Keyboard 1 Movement Arrows Keybinds 0 Fullscreen 1 Font 24/Smallcaps Map View 50x35 Zoom Use 0% Tactical HUD 1 Map Filters NONE Filters NONE Steam 1 RUN: abc09323-c263-47fb-9580-2560cde26313